Workbook

Sheet INTRODUCTION

Sheet >>Liste de prix produits
B2: Ingrédients | C2: Unité | D2: Prix d'achat
B3: Choisissez votre produit | C3: kg | D3: 0
B4: Boissons
B5: Café | C5: kg | D5: 15.3
B6: Thé | C6: pc | D6: 0.15
B7: Eau plate | C7: l | D7: 0.98
B8: Eau pétillante | C8: l | D8: 1.1
B9: Jus d’orange | C9: l | D9: 3.2
B10: Smoothie kiwi (250 ml) | C10: pc | D10: 1.33
B11: Smoothie fruits rouges (250 ml) | C11: pc | D11: 1.33
B12: Jus de pomme | C12: l | D12: 1.06
B13: Jus de tomate | C13: l | D13: 0.99
B14: Lait chocolaté | C14: l | D14: 1.63
B15: À compléter
B16: À compléter
B17: À compléter
B18: À compléter
B19: À compléter
B20: Produits laitiers
B21: Yaourt aux fruits (150 g) | C21: pc | D21: 0.43
B22: Yaourt avec céréales (100 g) | C22: pc | D22: 0.55
B23: Actimel (80 ml) | C23: pc | D23: 0.75
B24: Lait | C24: l | D24: 0.72
B25: Fromage en tranches (20 g) | C25: pc | D25: 0.16
B26: Lait de soja | C26: l | D26: 3.2
B27: Brie | C27: kg | D27: 18.52
B28: Fromage de chèvre | C28: kg | D28: 12.4
B29: Chimay Bleue | C29: kg | D29: 53.55
B30: Cheddar | C30: kg | D30: 7.65
B31: Maredsous | C31: kg | D31: 5.91
B32: Fromage aux herbes | C32: kg | D32: 9.68
B33: Cottage cheese | C33: l | D33: 6.33
B34: Lait écrémé | C34: l | D34: 0.64
B35: À compléter
B36: À compléter
B37: À compléter
B38: À compléter
B39: À compléter
B40: Fruits
B41: Kiwi | C41: pc | D41: 0.55
B42: Pomme | C42: kg | D42: 1.9
B43: Poire | C43: kg | D43: 2.1
B44: Orange | C44: kg | D44: 2.28
B45: Raisins | C45: kg | D45: 4.42
B46: Salade de fruits | C46: kg | D46: 5.1
B47: Banane | C47: kg | D47: 2.87
B48: À compléter
B49: À compléter
B50: À compléter
B51: À compléter
B52: À compléter
B53: Buffet chaud
B54: Œuf | C54: pc | D54: 0.09
B55: Lard | C55: kg | D55: 9.32
B56: Mini saucisses | C56: kg | D56: 8.4
B57: Tomates | C57: kg | D57: 2.14
B58: Champignons sautés | C58: kg | D58: 7.8
B59: Tranches de pomme de terre | C59: kg | D59: 4
B60: À compléter
B61: À compléter
B62: À compléter
B63: À compléter
B64: À compléter
B65: Poisson
B66: Saumon fumé | C66: kg | D66: 22.83
B67: Elbot fumé | C67: kg | D67: 31.78
B68: Maatjes | C68: kg | D68: 21.87
B69: Crevettes | C69: kg | D69: 40
B70: Salade de wakamé | C70: kg | D70: 18
B71: À compléter
B72: À compléter
B73: À compléter
B74: À compléter
B75: À compléter
B76: Charcuterie
B77: Pancetta | C77: kg | D77: 10.27
B78: Dinde fumée | C78: kg | D78: 9.27
B79: Jambon cuit | C79: kg | D79: 11.5
B80: Jambon Ganda | C80: kg | D80: 36
B81: Salami | C81: kg | D81: 11.51
B82: Boudin noir | C82: kg | D82: 10.12
B83: À compléter
B84: À compléter
B85: À compléter
B86: À compléter
B87: À compléter
B88: Sucré
B89: Nutella (15 g) | C89: pc | D89: 0.16
B90: Confiture (15 g) | C90: pc | D90: 0.17
B91: Fromage à tartiner (17 g) | C91: pc | D91: 0.21
B92: Crêpes | C92: pc | D92: =33.9/15 -> 2.26
B93: Souris en chocolat (20 g) | C93: pc | D93: 0.31
B94: Édulcorants | C94: pc | D94: 0.02
B95: Sucre pour café (5 g) | C95: pc | D95: 0.01
B96: À compléter
B97: À compléter
B98: À compléter
B99: À compléter
B100: À compléter
B101: Salades et légumes
B102: Mélange pour salade | C102: g | D102: 0.01
B103: Échalote | C103: kg | D103: 2.07
B104: Tomate cerise | C104: kg | D104: 1.03
B105: Maïs | C105: g | D105: 0.01
B106: À compléter
B107: À compléter
B108: À compléter
B109: À compléter
B110: À compléter
B111: Garnitures
B112: Croûtons | C112: kg | D112: 5.18
B113: Mélange de noix | C113: kg | D113: 23
B114: Cornichons | C114: kg | D114: 3.36
B115: Mini oignons au vinaigre | C115: kg | D115: 1.81
B116: Câpres | C116: l | D116: 14.67
B117: Persil haché | C117: kg | D117: 18.5
B118: Citron en quartiers | C118: pc | D118: 0.45
B119: Beurre (8 g) | C119: pc | D119: 0.08
B120: Margarine (15 g) | C120: pc | D120: 0.05
B121: À compléter
B122: À compléter
B123: À compléter
B124: À compléter
B125: À compléter
B126: Pain
A127: 17920000 | B127: Pain au chocolat premium | C127: pc | D127: =35.35/48 -> 0.7364583333
A128: 21860000 | B128: Pain au chocolat | C128: pc | D128: =27.66/48 -> 0.57625
A129: 223162 | B129: Golden Croissant | C129: pc | D129: =25.48/52 -> 0.49
A130: 223805 | B130: Croissant droit | C130: pc | D130: =25.48/52 -> 0.49
A131: 21030004 | B131: Couque suisse ronde premium | C131: pc | D131: =32.26/36 -> 0.8961111111
A132: 226713 | B132: Cinnamon Scandi Swirl | C132: pc | D132: =34.65/35 -> 0.99
A133: 22320000 | B133: Assortiment mini-viennoiseries | C133: pc | D133: =50.83/450 -> 0.1129555556
A134: 223173 | B134: Mini Danish Selection | C134: pc | D134: =56.08/112 -> 0.5007142857
A135: 17300003 | B135: Mini croissant fourré | C135: pc | D135: =70.62/108 -> 0.6538888889
A136: 222864 | B136: Assortiment Resto | C136: pc | D136: =25.17/100 -> 0.2517
A137: 223831 | B137: Assortiment Prestige | C137: pc | D137: =33.83/100 -> 0.3383
A138: 220092 | B138: Petite Boule Rustique pain complet | C138: pc | D138: =26.75/80 -> 0.334375
A139: 227649 | B139: Pain du Meunier gris | C139: pc | D139: =33.83/8 -> 4.22875
A140: 23600001 | B140: Pain du Meunier multigrains | C140: pc | D140: =33.83/8 -> 4.22875
A141: 23610001 | B141: Pain du Meunier blanc | C141: pc | D141: =33.83/8 -> 4.22875
A142: 26100000 | B142: Pain Toast Blanc | C142: pc | D142: =12.95/4 -> 3.2375
A143: 225608 | B143: Pain Toast Premium Country | C143: pc | D143: =45.1/10 -> 4.51
A144: 223284 | B144: PLUS Pain français blanc farine | C144: pc | D144: =21.96/20 -> 1.098
A145: 224648 | B145: PLUS Pain français fitness | C145: pc | D145: =28.29/23 -> 1.23
A146: 24680000 | B146: Petit pain blanc sans gluten | C146: pc | D146: =27.03/24 -> 1.12625
B147: À compléter
B148: À compléter
B149: À compléter
B150: À compléter
B151: À compléter

Sheet Buffet petit-déjeuner (vide)
A1: BUFFET PETIT-DÉJEUNER
A2: Complétez ici votre propre petit-déjeuner : indiquez les quantités souhaitées et ajoutez le nombre de clients. Le coût alimentaire est calculé automatiquement.
A3: INGRÉDIENTS | B3: QUANTITÉ | C3: UNITÉ | D3: PRIX D'ACHAT | E3: COÛT ALIMENTAIRE | F3: % COÛT PAR CATÉGORIE
A4: Boissons
A5: ='>>Liste de prix produits'!B5 -> Café | C5: ='>>Liste de prix produits'!C5 -> kg | D5: ='>>Liste de prix produits'!D5 -> 15.3 | E5: =B5*D5 -> 0 | F5: =E20/$E$161 -> 
A6: ='>>Liste de prix produits'!B6 -> Thé | C6: ='>>Liste de prix produits'!C6 -> pc | D6: ='>>Liste de prix produits'!D6 -> 0.15 | E6: 0
A7: ='>>Liste de prix produits'!B7 -> Eau plate | C7: ='>>Liste de prix produits'!C7 -> l | D7: ='>>Liste de prix produits'!D7 -> 0.98 | E7: 0
A8: ='>>Liste de prix produits'!B8 -> Eau pétillante | C8: ='>>Liste de prix produits'!C8 -> l | D8: ='>>Liste de prix produits'!D8 -> 1.1 | E8: 0
A9: ='>>Liste de prix produits'!B9 -> Jus d’orange | C9: ='>>Liste de prix produits'!C9 -> l | D9: ='>>Liste de prix produits'!D9 -> 3.2 | E9: 0
A10: ='>>Liste de prix produits'!B10 -> Smoothie kiwi (250 ml) | C10: ='>>Liste de prix produits'!C10 -> pc | D10: ='>>Liste de prix produits'!D10 -> 1.33 | E10: 0
A11: ='>>Liste de prix produits'!B11 -> Smoothie fruits rouges (250 ml) | C11: ='>>Liste de prix produits'!C11 -> pc | D11: ='>>Liste de prix produits'!D11 -> 1.33 | E11: 0
A12: ='>>Liste de prix produits'!B12 -> Jus de pomme | C12: ='>>Liste de prix produits'!C12 -> l | D12: ='>>Liste de prix produits'!D12 -> 1.06 | E12: 0
A13: ='>>Liste de prix produits'!B13 -> Jus de tomate | C13: ='>>Liste de prix produits'!C13 -> l | D13: ='>>Liste de prix produits'!D13 -> 0.99 | E13: 0
A14: ='>>Liste de prix produits'!B14 -> Lait chocolaté | C14: ='>>Liste de prix produits'!C14 -> l | D14: ='>>Liste de prix produits'!D14 -> 1.63 | E14: 0
A15: ='>>Liste de prix produits'!B15 -> À compléter | C15: ='>>Liste de prix produits'!C15 -> 0 | D15: ='>>Liste de prix produits'!D15 -> 0 | E15: 0
A16: ='>>Liste de prix produits'!B16 -> À compléter | C16: ='>>Liste de prix produits'!C16 -> 0 | D16: ='>>Liste de prix produits'!D16 -> 0 | E16: 0
A17: ='>>Liste de prix produits'!B17 -> À compléter | C17: ='>>Liste de prix produits'!C17 -> 0 | D17: ='>>Liste de prix produits'!D17 -> 0 | E17: 0
A18: ='>>Liste de prix produits'!B18 -> À compléter | C18: ='>>Liste de prix produits'!C18 -> 0 | D18: ='>>Liste de prix produits'!D18 -> 0 | E18: 0
A19: ='>>Liste de prix produits'!B19 -> À compléter | C19: ='>>Liste de prix produits'!C19 -> 0 | D19: ='>>Liste de prix produits'!D19 -> 0 | E19: 0
A20: Sous-total : | E20: =SUM(E5:E19) -> 0
A21: Produits laitiers
A22: ='>>Liste de prix produits'!B21 -> Yaourt aux fruits (150 g) | C22: ='>>Liste de prix produits'!C21 -> pc | D22: ='>>Liste de prix produits'!D21 -> 0.43 | E22: =B22*D22 -> 0 | F22: =E41/$E$161 -> 
A23: ='>>Liste de prix produits'!B22 -> Yaourt avec céréales (100 g) | C23: ='>>Liste de prix produits'!C22 -> pc | D23: ='>>Liste de prix produits'!D22 -> 0.55 | E23: 0
A24: ='>>Liste de prix produits'!B23 -> Actimel (80 ml) | C24: ='>>Liste de prix produits'!C23 -> pc | D24: ='>>Liste de prix produits'!D23 -> 0.75 | E24: 0
A25: ='>>Liste de prix produits'!B24 -> Lait | C25: ='>>Liste de prix produits'!C24 -> l | D25: ='>>Liste de prix produits'!D24 -> 0.72 | E25: 0
A26: ='>>Liste de prix produits'!B25 -> Fromage en tranches (20 g) | C26: ='>>Liste de prix produits'!C25 -> pc | D26: ='>>Liste de prix produits'!D25 -> 0.16 | E26: 0
A27: ='>>Liste de prix produits'!B26 -> Lait de soja | C27: ='>>Liste de prix produits'!C26 -> l | D27: ='>>Liste de prix produits'!D26 -> 3.2 | E27: 0
A28: ='>>Liste de prix produits'!B27 -> Brie | C28: ='>>Liste de prix produits'!C27 -> kg | D28: ='>>Liste de prix produits'!D27 -> 18.52 | E28: 0
A29: ='>>Liste de prix produits'!B28 -> Fromage de chèvre | C29: ='>>Liste de prix produits'!C28 -> kg | D29: ='>>Liste de prix produits'!D28 -> 12.4 | E29: 0
A30: ='>>Liste de prix produits'!B29 -> Chimay Bleue | C30: ='>>Liste de prix produits'!C29 -> kg | D30: ='>>Liste de prix produits'!D29 -> 53.55 | E30: 0
A31: ='>>Liste de prix produits'!B30 -> Cheddar | C31: ='>>Liste de prix produits'!C30 -> kg | D31: ='>>Liste de prix produits'!D30 -> 7.65 | E31: 0
A32: ='>>Liste de prix produits'!B31 -> Maredsous | C32: ='>>Liste de prix produits'!C31 -> kg | D32: ='>>Liste de prix produits'!D31 -> 5.91 | E32: 0
A33: ='>>Liste de prix produits'!B32 -> Fromage aux herbes | C33: ='>>Liste de prix produits'!C32 -> kg | D33: ='>>Liste de prix produits'!D32 -> 9.68 | E33: 0
A34: ='>>Liste de prix produits'!B33 -> Cottage cheese | C34: ='>>Liste de prix produits'!C33 -> l | D34: ='>>Liste de prix produits'!D33 -> 6.33 | E34: 0
A35: ='>>Liste de prix produits'!B34 -> Lait écrémé | C35: ='>>Liste de prix produits'!C34 -> l | D35: ='>>Liste de prix produits'!D34 -> 0.64 | E35: 0
A36: ='>>Liste de prix produits'!B35 -> À compléter | C36: ='>>Liste de prix produits'!C36 -> 0 | D36: ='>>Liste de prix produits'!D36 -> 0 | E36: 0
A37: ='>>Liste de prix produits'!B36 -> À compléter | C37: ='>>Liste de prix produits'!C37 -> 0 | D37: ='>>Liste de prix produits'!D37 -> 0 | E37: 0
A38: ='>>Liste de prix produits'!B37 -> À compléter | C38: ='>>Liste de prix produits'!C38 -> 0 | D38: ='>>Liste de prix produits'!D38 -> 0 | E38: 0
A39: ='>>Liste de prix produits'!B38 -> À compléter | C39: ='>>Liste de prix produits'!C39 -> 0 | D39: ='>>Liste de prix produits'!D39 -> 0 | E39: 0
A40: ='>>Liste de prix produits'!B39 -> À compléter | C40: ='>>Liste de prix produits'!C40 -> 0 | D40: ='>>Liste de prix produits'!D40 -> 0 | E40: 0
A41: Sous-total : | E41: =SUM(E22:E40) -> 0
A42: Fruits
A43: ='>>Liste de prix produits'!B41 -> Kiwi | C43: ='>>Liste de prix produits'!C41 -> pc | D43: ='>>Liste de prix produits'!D41 -> 0.55 | E43: =B43*D43 -> 0 | F43: =E55/$E$161 -> 
A44: ='>>Liste de prix produits'!B42 -> Pomme | C44: ='>>Liste de prix produits'!C42 -> kg | D44: ='>>Liste de prix produits'!D42 -> 1.9 | E44: 0
A45: ='>>Liste de prix produits'!B43 -> Poire | C45: ='>>Liste de prix produits'!C43 -> kg | D45: ='>>Liste de prix produits'!D43 -> 2.1 | E45: 0
A46: ='>>Liste de prix produits'!B44 -> Orange | C46: ='>>Liste de prix produits'!C44 -> kg | D46: ='>>Liste de prix produits'!D44 -> 2.28 | E46: 0
A47: ='>>Liste de prix produits'!B45 -> Raisins | C47: ='>>Liste de prix produits'!C45 -> kg | D47: ='>>Liste de prix produits'!D45 -> 4.42 | E47: 0
A48: ='>>Liste de prix produits'!B46 -> Salade de fruits | C48: ='>>Liste de prix produits'!C46 -> kg | D48: ='>>Liste de prix produits'!D46 -> 5.1 | E48: 0
A49: ='>>Liste de prix produits'!B47 -> Banane | C49: ='>>Liste de prix produits'!C47 -> kg | D49: ='>>Liste de prix produits'!D47 -> 2.87 | E49: 0
A50: ='>>Liste de prix produits'!B48 -> À compléter | C50: ='>>Liste de prix produits'!C48 -> 0 | D50: ='>>Liste de prix produits'!D48 -> 0 | E50: 0
A51: ='>>Liste de prix produits'!B49 -> À compléter | C51: ='>>Liste de prix produits'!C49 -> 0 | D51: ='>>Liste de prix produits'!D49 -> 0 | E51: 0
A52: ='>>Liste de prix produits'!B50 -> À compléter | C52: ='>>Liste de prix produits'!C50 -> 0 | D52: ='>>Liste de prix produits'!D50 -> 0 | E52: 0
A53: ='>>Liste de prix produits'!B51 -> À compléter | C53: ='>>Liste de prix produits'!C51 -> 0 | D53: ='>>Liste de prix produits'!D51 -> 0 | E53: 0
A54: ='>>Liste de prix produits'!B52 -> À compléter | C54: ='>>Liste de prix produits'!C52 -> 0 | D54: ='>>Liste de prix produits'!D52 -> 0 | E54: 0
A55: Sous-total : | E55: =SUM(E43:E54) -> 0
A56: Buffet chaud
A57: ='>>Liste de prix produits'!B54 -> Œuf | C57: ='>>Liste de prix produits'!C54 -> pc | D57: ='>>Liste de prix produits'!D54 -> 0.09 | E57: =B57*D57 -> 0 | F57: =E68/$E$161 -> 
A58: ='>>Liste de prix produits'!B55 -> Lard | C58: ='>>Liste de prix produits'!C55 -> kg | D58: ='>>Liste de prix produits'!D55 -> 9.32 | E58: 0
A59: ='>>Liste de prix produits'!B56 -> Mini saucisses | C59: ='>>Liste de prix produits'!C56 -> kg | D59: ='>>Liste de prix produits'!D56 -> 8.4 | E59: 0
A60: ='>>Liste de prix produits'!B57 -> Tomates | C60: ='>>Liste de prix produits'!C57 -> kg | D60: ='>>Liste de prix produits'!D57 -> 2.14 | E60: 0
A61: ='>>Liste de prix produits'!B58 -> Champignons sautés | C61: ='>>Liste de prix produits'!C58 -> kg | D61: ='>>Liste de prix produits'!D58 -> 7.8 | E61: 0
A62: ='>>Liste de prix produits'!B59 -> Tranches de pomme de terre | C62: ='>>Liste de prix produits'!C59 -> kg | D62: ='>>Liste de prix produits'!D59 -> 4 | E62: 0
A63: ='>>Liste de prix produits'!B60 -> À compléter | C63: ='>>Liste de prix produits'!C60 -> 0 | D63: ='>>Liste de prix produits'!D60 -> 0 | E63: 0
A64: ='>>Liste de prix produits'!B61 -> À compléter | C64: ='>>Liste de prix produits'!C61 -> 0 | D64: ='>>Liste de prix produits'!D61 -> 0 | E64: 0
A65: ='>>Liste de prix produits'!B62 -> À compléter | C65: ='>>Liste de prix produits'!C62 -> 0 | D65: ='>>Liste de prix produits'!D62 -> 0 | E65: 0
A66: ='>>Liste de prix produits'!B63 -> À compléter | C66: ='>>Liste de prix produits'!C63 -> 0 | D66: ='>>Liste de prix produits'!D63 -> 0 | E66: 0
A67: ='>>Liste de prix produits'!B64 -> À compléter | C67: ='>>Liste de prix produits'!C64 -> 0 | D67: ='>>Liste de prix produits'!D64 -> 0 | E67: 0
A68: Sous-total : | E68: =SUM(E57:E67) -> 0
A69: Poisson
A70: ='>>Liste de prix produits'!B66 -> Saumon fumé | C70: ='>>Liste de prix produits'!C66 -> kg | D70: ='>>Liste de prix produits'!D66 -> 22.83 | E70: =B70*D70 -> 0 | F70: =E80/$E$161 -> 
A71: ='>>Liste de prix produits'!B67 -> Elbot fumé | C71: ='>>Liste de prix produits'!C67 -> kg | D71: ='>>Liste de prix produits'!D67 -> 31.78 | E71: 0
A72: ='>>Liste de prix produits'!B68 -> Maatjes | C72: ='>>Liste de prix produits'!C68 -> kg | D72: ='>>Liste de prix produits'!D68 -> 21.87 | E72: 0
A73: ='>>Liste de prix produits'!B69 -> Crevettes | C73: ='>>Liste de prix produits'!C69 -> kg | D73: ='>>Liste de prix produits'!D69 -> 40 | E73: 0
A74: ='>>Liste de prix produits'!B70 -> Salade de wakamé | C74: ='>>Liste de prix produits'!C70 -> kg | D74: ='>>Liste de prix produits'!D70 -> 18 | E74: 0
A75: ='>>Liste de prix produits'!B71 -> À compléter | C75: ='>>Liste de prix produits'!C71 -> 0 | D75: ='>>Liste de prix produits'!D71 -> 0 | E75: 0
A76: ='>>Liste de prix produits'!B72 -> À compléter | C76: ='>>Liste de prix produits'!C72 -> 0 | D76: ='>>Liste de prix produits'!D72 -> 0 | E76: 0
A77: ='>>Liste de prix produits'!B73 -> À compléter | C77: ='>>Liste de prix produits'!C73 -> 0 | D77: ='>>Liste de prix produits'!D73 -> 0 | E77: 0
A78: ='>>Liste de prix produits'!B74 -> À compléter | C78: ='>>Liste de prix produits'!C74 -> 0 | D78: ='>>Liste de prix produits'!D74 -> 0 | E78: 0
A79: ='>>Liste de prix produits'!B75 -> À compléter | C79: ='>>Liste de prix produits'!C75 -> 0 | D79: ='>>Liste de prix produits'!D75 -> 0 | E79: 0
A80: Sous-total : | E80: =SUM(E70:E79) -> 0
A81: Garnitures
A82: ='>>Liste de prix produits'!B77 -> Pancetta | C82: ='>>Liste de prix produits'!C77 -> kg | D82: ='>>Liste de prix produits'!D77 -> 10.27 | E82: =B82*D82 -> 0 | F82: =E93/$E$161 -> 
A83: ='>>Liste de prix produits'!B78 -> Dinde fumée | C83: ='>>Liste de prix produits'!C78 -> kg | D83: ='>>Liste de prix produits'!D78 -> 9.27 | E83: 0
A84: ='>>Liste de prix produits'!B79 -> Jambon cuit | C84: ='>>Liste de prix produits'!C79 -> kg | D84: ='>>Liste de prix produits'!D79 -> 11.5 | E84: 0
A85: ='>>Liste de prix produits'!B80 -> Jambon Ganda | C85: ='>>Liste de prix produits'!C80 -> kg | D85: ='>>Liste de prix produits'!D80 -> 36 | E85: 0
A86: ='>>Liste de prix produits'!B81 -> Salami | C86: ='>>Liste de prix produits'!C81 -> kg | D86: ='>>Liste de prix produits'!D81 -> 11.51 | E86: 0
A87: ='>>Liste de prix produits'!B82 -> Boudin noir | C87: ='>>Liste de prix produits'!C82 -> kg | D87: ='>>Liste de prix produits'!D82 -> 10.12 | E87: 0
A88: ='>>Liste de prix produits'!B83 -> À compléter | C88: ='>>Liste de prix produits'!C83 -> 0 | D88: ='>>Liste de prix produits'!D83 -> 0 | E88: 0
A89: ='>>Liste de prix produits'!B84 -> À compléter | C89: ='>>Liste de prix produits'!C84 -> 0 | D89: ='>>Liste de prix produits'!D84 -> 0 | E89: 0
A90: ='>>Liste de prix produits'!B85 -> À compléter | C90: ='>>Liste de prix produits'!C85 -> 0 | D90: ='>>Liste de prix produits'!D85 -> 0 | E90: 0
A91: ='>>Liste de prix produits'!B86 -> À compléter | C91: ='>>Liste de prix produits'!C86 -> 0 | D91: ='>>Liste de prix produits'!D86 -> 0 | E91: 0
A92: ='>>Liste de prix produits'!B87 -> À compléter | C92: ='>>Liste de prix produits'!C87 -> 0 | D92: ='>>Liste de prix produits'!D87 -> 0 | E92: 0
A93: Sous-total : | E93: =SUM(E82:E92) -> 0
A94: Sucré
A95: ='>>Liste de prix produits'!B89 -> Nutella (15 g) | C95: ='>>Liste de prix produits'!C89 -> pc | D95: ='>>Liste de prix produits'!D89 -> 0.16 | E95: =B95*D95 -> 0 | F95: =E106/$E$161 -> 
A96: ='>>Liste de prix produits'!B90 -> Confiture (15 g) | C96: ='>>Liste de prix produits'!C90 -> pc | D96: ='>>Liste de prix produits'!D90 -> 0.17 | E96: 0
A97: ='>>Liste de prix produits'!B91 -> Fromage à tartiner (17 g) | C97: ='>>Liste de prix produits'!C91 -> pc | D97: ='>>Liste de prix produits'!D91 -> 0.21 | E97: 0
A98: ='>>Liste de prix produits'!B93 -> Souris en chocolat (20 g) | C98: ='>>Liste de prix produits'!C93 -> pc | D98: ='>>Liste de prix produits'!D93 -> 0.31 | E98: 0
A99: ='>>Liste de prix produits'!B94 -> Édulcorants | C99: ='>>Liste de prix produits'!C94 -> pc | D99: ='>>Liste de prix produits'!D94 -> 0.02 | E99: 0
A100: ='>>Liste de prix produits'!B95 -> Sucre pour café (5 g) | C100: ='>>Liste de prix produits'!C95 -> pc | D100: ='>>Liste de prix produits'!D95 -> 0.01 | E100: 0
A101: ='>>Liste de prix produits'!B96 -> À compléter | C101: ='>>Liste de prix produits'!C96 -> 0 | D101: ='>>Liste de prix produits'!D96 -> 0 | E101: 0
A102: ='>>Liste de prix produits'!B97 -> À compléter | C102: ='>>Liste de prix produits'!C97 -> 0 | D102: ='>>Liste de prix produits'!D97 -> 0 | E102: 0
A103: ='>>Liste de prix produits'!B98 -> À compléter | C103: ='>>Liste de prix produits'!C98 -> 0 | D103: ='>>Liste de prix produits'!D98 -> 0 | E103: 0
A104: ='>>Liste de prix produits'!B99 -> À compléter | C104: ='>>Liste de prix produits'!C99 -> 0 | D104: ='>>Liste de prix produits'!D99 -> 0 | E104: 0
A105: ='>>Liste de prix produits'!B100 -> À compléter | C105: ='>>Liste de prix produits'!C100 -> 0 | D105: ='>>Liste de prix produits'!D100 -> 0 | E105: 0
A106: Sous-total : | E106: =SUM(E95:E105) -> 0
A107: Salades et légumes
A108: ='>>Liste de prix produits'!B102 -> Mélange pour salade | C108: ='>>Liste de prix produits'!C102 -> g | D108: ='>>Liste de prix produits'!D102 -> 0.01 | E108: =B108*D108 -> 0 | F108: =E117/$E$161 -> 
A109: ='>>Liste de prix produits'!B103 -> Échalote | C109: ='>>Liste de prix produits'!C103 -> kg | D109: ='>>Liste de prix produits'!D103 -> 2.07 | E109: 0
A110: ='>>Liste de prix produits'!B104 -> Tomate cerise | C110: ='>>Liste de prix produits'!C104 -> kg | D110: ='>>Liste de prix produits'!D104 -> 1.03 | E110: 0
A111: ='>>Liste de prix produits'!B105 -> Maïs | C111: ='>>Liste de prix produits'!C105 -> g | D111: ='>>Liste de prix produits'!D105 -> 0.01 | E111: 0
A112: ='>>Liste de prix produits'!B106 -> À compléter | C112: ='>>Liste de prix produits'!C106 -> 0 | D112: ='>>Liste de prix produits'!D106 -> 0 | E112: 0
A113: ='>>Liste de prix produits'!B107 -> À compléter | C113: ='>>Liste de prix produits'!C107 -> 0 | D113: ='>>Liste de prix produits'!D107 -> 0 | E113: 0
A114: ='>>Liste de prix produits'!B108 -> À compléter | C114: ='>>Liste de prix produits'!C108 -> 0 | D114: ='>>Liste de prix produits'!D108 -> 0 | E114: 0
A115: ='>>Liste de prix produits'!B109 -> À compléter | C115: ='>>Liste de prix produits'!C109 -> 0 | D115: ='>>Liste de prix produits'!D109 -> 0 | E115: 0
A116: ='>>Liste de prix produits'!B110 -> À compléter | C116: ='>>Liste de prix produits'!C110 -> 0 | D116: ='>>Liste de prix produits'!D110 -> 0 | E116: 0
A117: Sous-total : | E117: =SUM(E108:E116) -> 0
A118: Garnitures
A119: ='>>Liste de prix produits'!B112 -> Croûtons | C119: ='>>Liste de prix produits'!C112 -> kg | D119: ='>>Liste de prix produits'!D112 -> 5.18 | E119: =B119*D119 -> 0 | F119: =E133/$E$161 -> 
A120: ='>>Liste de prix produits'!B113 -> Mélange de noix | C120: ='>>Liste de prix produits'!C113 -> kg | D120: ='>>Liste de prix produits'!D113 -> 23 | E120: 0
A121: ='>>Liste de prix produits'!B114 -> Cornichons | C121: ='>>Liste de prix produits'!C114 -> kg | D121: ='>>Liste de prix produits'!D114 -> 3.36 | E121: 0
A122: ='>>Liste de prix produits'!B115 -> Mini oignons au vinaigre | C122: ='>>Liste de prix produits'!C115 -> kg | D122: ='>>Liste de prix produits'!D115 -> 1.81 | E122: 0
A123: ='>>Liste de prix produits'!B116 -> Câpres | C123: ='>>Liste de prix produits'!C116 -> l | D123: ='>>Liste de prix produits'!D116 -> 14.67 | E123: 0
A124: ='>>Liste de prix produits'!B117 -> Persil haché | C124: ='>>Liste de prix produits'!C117 -> kg | D124: ='>>Liste de prix produits'!D117 -> 18.5 | E124: 0
A125: ='>>Liste de prix produits'!B118 -> Citron en quartiers | C125: ='>>Liste de prix produits'!C118 -> pc | D125: ='>>Liste de prix produits'!D118 -> 0.45 | E125: 0
A126: ='>>Liste de prix produits'!B119 -> Beurre (8 g) | C126: ='>>Liste de prix produits'!C119 -> pc | D126: ='>>Liste de prix produits'!D119 -> 0.08 | E126: 0
A127: ='>>Liste de prix produits'!B120 -> Margarine (15 g) | C127: ='>>Liste de prix produits'!C120 -> pc | D127: ='>>Liste de prix produits'!D120 -> 0.05 | E127: 0
A128: ='>>Liste de prix produits'!B121 -> À compléter | C128: ='>>Liste de prix produits'!C121 -> 0 | D128: ='>>Liste de prix produits'!D121 -> 0 | E128: 0
A129: ='>>Liste de prix produits'!B122 -> À compléter | C129: ='>>Liste de prix produits'!C122 -> 0 | D129: ='>>Liste de prix produits'!D122 -> 0 | E129: 0
A130: ='>>Liste de prix produits'!B123 -> À compléter | C130: ='>>Liste de prix produits'!C123 -> 0 | D130: ='>>Liste de prix produits'!D123 -> 0 | E130: 0
A131: ='>>Liste de prix produits'!B124 -> À compléter | C131: ='>>Liste de prix produits'!C124 -> 0 | D131: ='>>Liste de prix produits'!D124 -> 0 | E131: 0
A132: ='>>Liste de prix produits'!B125 -> À compléter | C132: ='>>Liste de prix produits'!C125 -> 0 | D132: ='>>Liste de prix produits'!D125 -> 0 | E132: 0
A133: Sous-total : | E133: =SUM(E119:E132) -> 0
A134: Pain
A135: ='>>Liste de prix produits'!B127 -> Pain au chocolat premium | C135: ='>>Liste de prix produits'!C127 -> pc | D135: ='>>Liste de prix produits'!D127 -> 0.7364583333 | E135: =B135*D135 -> 0 | F135: =E160/$E$161 -> 
A136: ='>>Liste de prix produits'!B128 -> Pain au chocolat | C136: ='>>Liste de prix produits'!C128 -> pc | D136: ='>>Liste de prix produits'!D128 -> 0.57625 | E136: 0
A137: ='>>Liste de prix produits'!B129 -> Golden Croissant | C137: ='>>Liste de prix produits'!C129 -> pc | D137: ='>>Liste de prix produits'!D129 -> 0.49 | E137: 0
A138: ='>>Liste de prix produits'!B130 -> Croissant droit | C138: ='>>Liste de prix produits'!C130 -> pc | D138: ='>>Liste de prix produits'!D130 -> 0.49 | E138: 0
A139: ='>>Liste de prix produits'!B131 -> Couque suisse ronde premium | C139: ='>>Liste de prix produits'!C131 -> pc | D139: ='>>Liste de prix produits'!D131 -> 0.8961111111 | E139: 0
A140: ='>>Liste de prix produits'!B132 -> Cinnamon Scandi Swirl | C140: ='>>Liste de prix produits'!C132 -> pc | D140: ='>>Liste de prix produits'!D132 -> 0.99 | E140: 0
A141: ='>>Liste de prix produits'!B133 -> Assortiment mini-viennoiseries | C141: ='>>Liste de prix produits'!C133 -> pc | D141: ='>>Liste de prix produits'!D133 -> 0.1129555556 | E141: 0
A142: ='>>Liste de prix produits'!B134 -> Mini Danish Selection | C142: ='>>Liste de prix produits'!C134 -> pc | D142: ='>>Liste de prix produits'!D134 -> 0.5007142857 | E142: 0
A143: ='>>Liste de prix produits'!B135 -> Mini croissant fourré | C143: ='>>Liste de prix produits'!C135 -> pc | D143: ='>>Liste de prix produits'!D135 -> 0.6538888889 | E143: 0
A144: ='>>Liste de prix produits'!B136 -> Assortiment Resto | C144: ='>>Liste de prix produits'!C136 -> pc | D144: ='>>Liste de prix produits'!D136 -> 0.2517 | E144: 0
A145: ='>>Liste de prix produits'!B137 -> Assortiment Prestige | C145: ='>>Liste de prix produits'!C137 -> pc | D145: ='>>Liste de prix produits'!D137 -> 0.3383 | E145: 0
A146: ='>>Liste de prix produits'!B138 -> Petite Boule Rustique pain complet | C146: ='>>Liste de prix produits'!C138 -> pc | D146: ='>>Liste de prix produits'!D138 -> 0.334375 | E146: 0
A147: ='>>Liste de prix produits'!B139 -> Pain du Meunier gris | C147: ='>>Liste de prix produits'!C139 -> pc | D147: ='>>Liste de prix produits'!D139 -> 4.22875 | E147: 0
A148: ='>>Liste de prix produits'!B140 -> Pain du Meunier multigrains | C148: ='>>Liste de prix produits'!C140 -> pc | D148: ='>>Liste de prix produits'!D140 -> 4.22875 | E148: 0
A149: ='>>Liste de prix produits'!B141 -> Pain du Meunier blanc | C149: ='>>Liste de prix produits'!C141 -> pc | D149: ='>>Liste de prix produits'!D141 -> 4.22875 | E149: 0
A150: ='>>Liste de prix produits'!B142 -> Pain Toast Blanc | C150: ='>>Liste de prix produits'!C142 -> pc | D150: ='>>Liste de prix produits'!D142 -> 3.2375 | E150: 0
A151: ='>>Liste de prix produits'!B143 -> Pain Toast Premium Country | C151: ='>>Liste de prix produits'!C143 -> pc | D151: ='>>Liste de prix produits'!D143 -> 4.51 | E151: 0
A152: ='>>Liste de prix produits'!B144 -> PLUS Pain français blanc farine | C152: ='>>Liste de prix produits'!C144 -> pc | D152: ='>>Liste de prix produits'!D144 -> 1.098 | E152: 0
A153: ='>>Liste de prix produits'!B145 -> PLUS Pain français fitness | C153: ='>>Liste de prix produits'!C145 -> pc | D153: ='>>Liste de prix produits'!D145 -> 1.23 | E153: 0
A154: ='>>Liste de prix produits'!B146 -> Petit pain blanc sans gluten | C154: ='>>Liste de prix produits'!C146 -> pc | D154: ='>>Liste de prix produits'!D146 -> 1.12625 | E154: 0
A155: ='>>Liste de prix produits'!B147 -> À compléter | C155: ='>>Liste de prix produits'!C147 -> 0 | D155: ='>>Liste de prix produits'!D147 -> 0 | E155: 0
A156: ='>>Liste de prix produits'!B148 -> À compléter | C156: ='>>Liste de prix produits'!C148 -> 0 | D156: ='>>Liste de prix produits'!D148 -> 0 | E156: 0
A157: ='>>Liste de prix produits'!B149 -> À compléter | C157: ='>>Liste de prix produits'!C149 -> 0 | D157: ='>>Liste de prix produits'!D149 -> 0 | E157: 0
A158: ='>>Liste de prix produits'!B150 -> À compléter | C158: ='>>Liste de prix produits'!C150 -> 0 | D158: ='>>Liste de prix produits'!D150 -> 0 | E158: 0
A159: ='>>Liste de prix produits'!B151 -> À compléter | C159: ='>>Liste de prix produits'!C151 -> 0 | D159: ='>>Liste de prix produits'!D151 -> 0 | E159: 0
A160: Sous-total : | E160: =SUM(E135:E159) -> 0
A161: Total : | E161: =E20+E41+E55+E68+E80+E93+E106+E117+E133+E160 -> 0
A162: Nombre total de clients : | C162: 0
A163: Coût par personne : | C163: =E161/C162 -> 

Sheet Buffet petit-déjeuner basique
A1: BUFFET PETIT-DÉJEUNER BASIQUE
A2: Exemple d’un petit-déjeuner d’hôtel simple et abordable, composé par nos chefs : servez-vous-en comme inspiration ou adaptez-le à votre propre offre.
A3: INGRÉDIENTS | B3: QUANTITÉ | C3: UNITÉ | D3: PRIX D'ACHAT | E3: COÛT ALIMENTAIRE | F3: % COÛT PAR CATÉGORIE
A4: Boissons
A5: ='>>Liste de prix produits'!B5 -> Café | B5: 0.5 | C5: ='>>Liste de prix produits'!C5 -> kg | D5: ='>>Liste de prix produits'!D5 -> 15.3 | E5: =B5*D5 -> 7.65 | F5: =E20/$E$162 -> 0.06690374316
A6: ='>>Liste de prix produits'!B6 -> Thé | B6: 1 | C6: ='>>Liste de prix produits'!C6 -> pc | D6: ='>>Liste de prix produits'!D6 -> 0.15 | E6: 0.15
A7: ='>>Liste de prix produits'!B7 -> Eau plate | B7: 0.33 | C7: ='>>Liste de prix produits'!C7 -> l | D7: ='>>Liste de prix produits'!D7 -> 0.98 | E7: 0.3234
A8: ='>>Liste de prix produits'!B8 -> Eau pétillante | B8: 0.33 | C8: ='>>Liste de prix produits'!C8 -> l | D8: ='>>Liste de prix produits'!D8 -> 1.1 | E8: 0.363
A9: ='>>Liste de prix produits'!B9 -> Jus d’orange | B9: 2 | C9: ='>>Liste de prix produits'!C9 -> l | D9: ='>>Liste de prix produits'!D9 -> 3.2 | E9: 6.4
A10: ='>>Liste de prix produits'!B10 -> Smoothie kiwi (250 ml) | C10: ='>>Liste de prix produits'!C10 -> pc | D10: ='>>Liste de prix produits'!D10 -> 1.33 | E10: 0
A11: ='>>Liste de prix produits'!B11 -> Smoothie fruits rouges (250 ml) | C11: ='>>Liste de prix produits'!C11 -> pc | D11: ='>>Liste de prix produits'!D11 -> 1.33 | E11: 0
A12: ='>>Liste de prix produits'!B12 -> Jus de pomme | B12: 2 | C12: ='>>Liste de prix produits'!C12 -> l | D12: ='>>Liste de prix produits'!D12 -> 1.06 | E12: 2.12
A13: ='>>Liste de prix produits'!B13 -> Jus de tomate | C13: ='>>Liste de prix produits'!C13 -> l | D13: ='>>Liste de prix produits'!D13 -> 0.99 | E13: 0
A14: ='>>Liste de prix produits'!B14 -> Lait chocolaté | B14: 0.5 | C14: ='>>Liste de prix produits'!C14 -> l | D14: ='>>Liste de prix produits'!D14 -> 1.63 | E14: 0.815
A15: ='>>Liste de prix produits'!B15 -> À compléter | C15: ='>>Liste de prix produits'!C15 -> 0 | D15: ='>>Liste de prix produits'!D15 -> 0 | E15: 0
A16: ='>>Liste de prix produits'!B16 -> À compléter | C16: ='>>Liste de prix produits'!C16 -> 0 | D16: ='>>Liste de prix produits'!D16 -> 0 | E16: 0
A17: ='>>Liste de prix produits'!B17 -> À compléter | C17: ='>>Liste de prix produits'!C17 -> 0 | D17: ='>>Liste de prix produits'!D17 -> 0 | E17: 0
A18: ='>>Liste de prix produits'!B18 -> À compléter | C18: ='>>Liste de prix produits'!C18 -> 0 | D18: ='>>Liste de prix produits'!D18 -> 0 | E18: 0
A19: ='>>Liste de prix produits'!B19 -> À compléter | C19: ='>>Liste de prix produits'!C19 -> 0 | D19: ='>>Liste de prix produits'!D19 -> 0 | E19: 0
A20: Sous-total : | E20: =SUM(E5:E19) -> 17.8214
A21: Produits laitiers
A22: ='>>Liste de prix produits'!B21 -> Yaourt aux fruits (150 g) | B22: 20 | C22: ='>>Liste de prix produits'!C21 -> pc | D22: ='>>Liste de prix produits'!D21 -> 0.43 | E22: =B22*D22 -> 8.6 | F22: =E41/$E$162 -> 0.1010779082
A23: ='>>Liste de prix produits'!B22 -> Yaourt avec céréales (100 g) | C23: ='>>Liste de prix produits'!C22 -> pc | D23: ='>>Liste de prix produits'!D22 -> 0.55 | E23: 0
A24: ='>>Liste de prix produits'!B23 -> Actimel (80 ml) | C24: ='>>Liste de prix produits'!C23 -> pc | D24: ='>>Liste de prix produits'!D23 -> 0.75 | E24: 0
A25: ='>>Liste de prix produits'!B24 -> Lait | B25: 0.2 | C25: ='>>Liste de prix produits'!C24 -> l | D25: ='>>Liste de prix produits'!D24 -> 0.72 | E25: 0.144
A26: ='>>Liste de prix produits'!B25 -> Fromage en tranches (20 g) | B26: 0.5 | C26: ='>>Liste de prix produits'!C25 -> pc | D26: ='>>Liste de prix produits'!D25 -> 0.16 | E26: 0.08
A27: ='>>Liste de prix produits'!B26 -> Lait de soja | B27: 1 | C27: ='>>Liste de prix produits'!C26 -> l | D27: ='>>Liste de prix produits'!D26 -> 3.2 | E27: 3.2
A28: ='>>Liste de prix produits'!B27 -> Brie | B28: 0.25 | C28: ='>>Liste de prix produits'!C27 -> kg | D28: ='>>Liste de prix produits'!D27 -> 18.52 | E28: 4.63
A29: ='>>Liste de prix produits'!B28 -> Fromage de chèvre | C29: ='>>Liste de prix produits'!C28 -> kg | D29: ='>>Liste de prix produits'!D28 -> 12.4 | E29: 0
A30: ='>>Liste de prix produits'!B29 -> Chimay Bleue | C30: ='>>Liste de prix produits'!C29 -> kg | D30: ='>>Liste de prix produits'!D29 -> 53.55 | E30: 0
A31: ='>>Liste de prix produits'!B30 -> Cheddar | B31: 0.5 | C31: ='>>Liste de prix produits'!C30 -> kg | D31: ='>>Liste de prix produits'!D30 -> 7.65 | E31: 3.825
A32: ='>>Liste de prix produits'!B31 -> Maredsous | B32: 0.25 | C32: ='>>Liste de prix produits'!C31 -> kg | D32: ='>>Liste de prix produits'!D31 -> 5.91 | E32: 1.4775
A33: ='>>Liste de prix produits'!B32 -> Fromage aux herbes | B33: 0.5 | C33: ='>>Liste de prix produits'!C32 -> kg | D33: ='>>Liste de prix produits'!D32 -> 9.68 | E33: 4.84
A34: ='>>Liste de prix produits'!B33 -> Cottage cheese | C34: ='>>Liste de prix produits'!C33 -> l | D34: ='>>Liste de prix produits'!D33 -> 6.33 | E34: 0
A35: ='>>Liste de prix produits'!B34 -> Lait écrémé | B35: 0.2 | C35: ='>>Liste de prix produits'!C34 -> l | D35: ='>>Liste de prix produits'!D34 -> 0.64 | E35: 0.128
A36: ='>>Liste de prix produits'!B35 -> À compléter | C36: ='>>Liste de prix produits'!C36 -> 0 | D36: ='>>Liste de prix produits'!D36 -> 0 | E36: 0
A37: ='>>Liste de prix produits'!B36 -> À compléter | C37: ='>>Liste de prix produits'!C37 -> 0 | D37: ='>>Liste de prix produits'!D37 -> 0 | E37: 0
A38: ='>>Liste de prix produits'!B37 -> À compléter | C38: ='>>Liste de prix produits'!C38 -> 0 | D38: ='>>Liste de prix produits'!D38 -> 0 | E38: 0
A39: ='>>Liste de prix produits'!B38 -> À compléter | C39: ='>>Liste de prix produits'!C39 -> 0 | D39: ='>>Liste de prix produits'!D39 -> 0 | E39: 0
A40: ='>>Liste de prix produits'!B39 -> À compléter | C40: ='>>Liste de prix produits'!C40 -> 0 | D40: ='>>Liste de prix produits'!D40 -> 0 | E40: 0
A41: Sous-total : | E41: =SUM(E22:E40) -> 26.9245
A42: Fruits
A43: ='>>Liste de prix produits'!B41 -> Kiwi | C43: ='>>Liste de prix produits'!C41 -> pc | D43: ='>>Liste de prix produits'!D41 -> 0.55 | E43: =B43*D43 -> 0 | F43: =E55/$E$162 -> 0.05229494553
A44: ='>>Liste de prix produits'!B42 -> Pomme | B44: 1 | C44: ='>>Liste de prix produits'!C42 -> kg | D44: ='>>Liste de prix produits'!D42 -> 1.9 | E44: 1.9
A45: ='>>Liste de prix produits'!B43 -> Poire | B45: 1 | C45: ='>>Liste de prix produits'!C43 -> kg | D45: ='>>Liste de prix produits'!D43 -> 2.1 | E45: 2.1
A46: ='>>Liste de prix produits'!B44 -> Orange | B46: 1 | C46: ='>>Liste de prix produits'!C44 -> kg | D46: ='>>Liste de prix produits'!D44 -> 2.28 | E46: 2.28
A47: ='>>Liste de prix produits'!B45 -> Raisins | C47: ='>>Liste de prix produits'!C45 -> kg | D47: ='>>Liste de prix produits'!D45 -> 4.42 | E47: 0
A48: ='>>Liste de prix produits'!B46 -> Salade de fruits | B48: 1.5 | C48: ='>>Liste de prix produits'!C46 -> kg | D48: ='>>Liste de prix produits'!D46 -> 5.1 | E48: 7.65
A49: ='>>Liste de prix produits'!B47 -> Banane | C49: ='>>Liste de prix produits'!C47 -> kg | D49: ='>>Liste de prix produits'!D47 -> 2.87 | E49: 0
A50: ='>>Liste de prix produits'!B48 -> À compléter | C50: ='>>Liste de prix produits'!C48 -> 0 | D50: ='>>Liste de prix produits'!D48 -> 0 | E50: 0
A51: ='>>Liste de prix produits'!B49 -> À compléter | C51: ='>>Liste de prix produits'!C49 -> 0 | D51: ='>>Liste de prix produits'!D49 -> 0 | E51: 0
A52: ='>>Liste de prix produits'!B50 -> À compléter | C52: ='>>Liste de prix produits'!C50 -> 0 | D52: ='>>Liste de prix produits'!D50 -> 0 | E52: 0
A53: ='>>Liste de prix produits'!B51 -> À compléter | C53: ='>>Liste de prix produits'!C51 -> 0 | D53: ='>>Liste de prix produits'!D51 -> 0 | E53: 0
A54: ='>>Liste de prix produits'!B52 -> À compléter | C54: ='>>Liste de prix produits'!C52 -> 0 | D54: ='>>Liste de prix produits'!D52 -> 0 | E54: 0
A55: Sous-total : | E55: =SUM(E43:E54) -> 13.93
A56: Buffet chaud
A57: ='>>Liste de prix produits'!B54 -> Œuf | B57: 36 | C57: ='>>Liste de prix produits'!C54 -> pc | D57: ='>>Liste de prix produits'!D54 -> 0.09 | E57: =B57*D57 -> 3.24 | F57: =E68/$E$162 -> 0.06119221911
A58: ='>>Liste de prix produits'!B55 -> Lard | B58: 0.5 | C58: ='>>Liste de prix produits'!C55 -> kg | D58: ='>>Liste de prix produits'!D55 -> 9.32 | E58: 4.66
A59: ='>>Liste de prix produits'!B56 -> Mini saucisses | B59: 1 | C59: ='>>Liste de prix produits'!C56 -> kg | D59: ='>>Liste de prix produits'!D56 -> 8.4 | E59: 8.4
A60: ='>>Liste de prix produits'!B57 -> Tomates | C60: ='>>Liste de prix produits'!C57 -> kg | D60: ='>>Liste de prix produits'!D57 -> 2.14 | E60: 0
A61: ='>>Liste de prix produits'!B58 -> Champignons sautés | C61: ='>>Liste de prix produits'!C58 -> kg | D61: ='>>Liste de prix produits'!D58 -> 7.8 | E61: 0
A62: ='>>Liste de prix produits'!B59 -> Tranches de pomme de terre | C62: ='>>Liste de prix produits'!C59 -> kg | D62: ='>>Liste de prix produits'!D59 -> 4 | E62: 0
A63: ='>>Liste de prix produits'!B60 -> À compléter | C63: ='>>Liste de prix produits'!C60 -> 0 | D63: ='>>Liste de prix produits'!D60 -> 0 | E63: 0
A64: ='>>Liste de prix produits'!B61 -> À compléter | C64: ='>>Liste de prix produits'!C61 -> 0 | D64: ='>>Liste de prix produits'!D61 -> 0 | E64: 0
A65: ='>>Liste de prix produits'!B62 -> À compléter | C65: ='>>Liste de prix produits'!C62 -> 0 | D65: ='>>Liste de prix produits'!D62 -> 0 | E65: 0
A66: ='>>Liste de prix produits'!B63 -> À compléter | C66: ='>>Liste de prix produits'!C63 -> 0 | D66: ='>>Liste de prix produits'!D63 -> 0 | E66: 0
A67: ='>>Liste de prix produits'!B64 -> À compléter | C67: ='>>Liste de prix produits'!C64 -> 0 | D67: ='>>Liste de prix produits'!D64 -> 0 | E67: 0
A68: Sous-total : | E68: =SUM(E57:E67) -> 16.3
A69: Poisson
A70: ='>>Liste de prix produits'!B66 -> Saumon fumé | B70: 1 | C70: ='>>Liste de prix produits'!C66 -> kg | D70: ='>>Liste de prix produits'!D66 -> 22.83 | E70: =B70*D70 -> 22.83 | F70: =E80/$E$162 -> 0.09246407096
A71: ='>>Liste de prix produits'!B67 -> Elbot fumé | C71: ='>>Liste de prix produits'!C67 -> kg | D71: ='>>Liste de prix produits'!D67 -> 31.78 | E71: 0
A72: ='>>Liste de prix produits'!B68 -> Maatjes | C72: ='>>Liste de prix produits'!C68 -> kg | D72: ='>>Liste de prix produits'!D68 -> 21.87 | E72: 0
A73: ='>>Liste de prix produits'!B69 -> Crevettes | C73: ='>>Liste de prix produits'!C69 -> kg | D73: ='>>Liste de prix produits'!D69 -> 40 | E73: 0
A74: ='>>Liste de prix produits'!B70 -> Salade de wakamé | B74: 0.1 | C74: ='>>Liste de prix produits'!C70 -> kg | D74: ='>>Liste de prix produits'!D70 -> 18 | E74: 1.8
A75: ='>>Liste de prix produits'!B71 -> À compléter | C75: ='>>Liste de prix produits'!C71 -> 0 | D75: ='>>Liste de prix produits'!D71 -> 0 | E75: 0
A76: ='>>Liste de prix produits'!B72 -> À compléter | C76: ='>>Liste de prix produits'!C72 -> 0 | D76: ='>>Liste de prix produits'!D72 -> 0 | E76: 0
A77: ='>>Liste de prix produits'!B73 -> À compléter | C77: ='>>Liste de prix produits'!C73 -> 0 | D77: ='>>Liste de prix produits'!D73 -> 0 | E77: 0
A78: ='>>Liste de prix produits'!B74 -> À compléter | C78: ='>>Liste de prix produits'!C74 -> 0 | D78: ='>>Liste de prix produits'!D74 -> 0 | E78: 0
A79: ='>>Liste de prix produits'!B75 -> À compléter | C79: ='>>Liste de prix produits'!C75 -> 0 | D79: ='>>Liste de prix produits'!D75 -> 0 | E79: 0
A80: Sous-total : | E80: =SUM(E70:E79) -> 24.63
A81: Charcuterie
A82: ='>>Liste de prix produits'!B77 -> Pancetta | C82: ='>>Liste de prix produits'!C77 -> kg | D82: ='>>Liste de prix produits'!D77 -> 10.27 | E82: =B82*D82 -> 0 | F82: =E93/$E$162 -> 0.02855386617
A83: ='>>Liste de prix produits'!B78 -> Dinde fumée | B83: 0.2 | C83: ='>>Liste de prix produits'!C78 -> kg | D83: ='>>Liste de prix produits'!D78 -> 9.27 | E83: 1.854
A84: ='>>Liste de prix produits'!B79 -> Jambon cuit | B84: 0.3 | C84: ='>>Liste de prix produits'!C79 -> kg | D84: ='>>Liste de prix produits'!D79 -> 11.5 | E84: 3.45
A85: ='>>Liste de prix produits'!B80 -> Jambon Ganda | C85: ='>>Liste de prix produits'!C80 -> kg | D85: ='>>Liste de prix produits'!D80 -> 36 | E85: 0
A86: ='>>Liste de prix produits'!B81 -> Salami | B86: 0.2 | C86: ='>>Liste de prix produits'!C81 -> kg | D86: ='>>Liste de prix produits'!D81 -> 11.51 | E86: 2.302
A87: ='>>Liste de prix produits'!B82 -> Boudin noir | C87: ='>>Liste de prix produits'!C82 -> kg | D87: ='>>Liste de prix produits'!D82 -> 10.12 | E87: 0
A88: ='>>Liste de prix produits'!B83 -> À compléter | C88: ='>>Liste de prix produits'!C83 -> 0 | D88: ='>>Liste de prix produits'!D83 -> 0 | E88: 0
A89: ='>>Liste de prix produits'!B84 -> À compléter | C89: ='>>Liste de prix produits'!C84 -> 0 | D89: ='>>Liste de prix produits'!D84 -> 0 | E89: 0
A90: ='>>Liste de prix produits'!B85 -> À compléter | C90: ='>>Liste de prix produits'!C85 -> 0 | D90: ='>>Liste de prix produits'!D85 -> 0 | E90: 0
A91: ='>>Liste de prix produits'!B86 -> À compléter | C91: ='>>Liste de prix produits'!C86 -> 0 | D91: ='>>Liste de prix produits'!D86 -> 0 | E91: 0
A92: ='>>Liste de prix produits'!B87 -> À compléter | C92: ='>>Liste de prix produits'!C87 -> 0 | D92: ='>>Liste de prix produits'!D87 -> 0 | E92: 0
A93: Sous-total : | E93: =SUM(E82:E92) -> 7.606
A94: Sucré
A95: ='>>Liste de prix produits'!B89 -> Nutella (15 g) | B95: =120*0.2 -> 24 | C95: ='>>Liste de prix produits'!C89 -> pc | D95: ='>>Liste de prix produits'!D89 -> 0.16 | E95: =B95*D95 -> 3.84 | F95: =E107/$E$162 -> 0.0718539309
A96: ='>>Liste de prix produits'!B90 -> Confiture (15 g) | B96: =100*0.2 -> 20 | C96: ='>>Liste de prix produits'!C90 -> pc | D96: ='>>Liste de prix produits'!D90 -> 0.17 | E96: 3.4
A97: ='>>Liste de prix produits'!B91 -> Fromage à tartiner (17 g) | B97: =80*0.2 -> 16 | C97: ='>>Liste de prix produits'!C91 -> pc | D97: ='>>Liste de prix produits'!D91 -> 0.21 | E97: 3.36
A98: ='>>Liste de prix produits'!B92 -> Crêpes | C98: pc | D98: ='>>Liste de prix produits'!D92 -> 2.26 | E98: 0
A99: ='>>Liste de prix produits'!B93 -> Souris en chocolat (20 g) | B99: =120*0.2 -> 24 | C99: ='>>Liste de prix produits'!C93 -> pc | D99: ='>>Liste de prix produits'!D93 -> 0.31 | E99: 7.44
A100: ='>>Liste de prix produits'!B94 -> Édulcorants | B100: =500*0.05 -> 25 | C100: ='>>Liste de prix produits'!C94 -> pc | D100: ='>>Liste de prix produits'!D94 -> 0.02 | E100: 0.5
A101: ='>>Liste de prix produits'!B95 -> Sucre pour café (5 g) | B101: =600*0.1 -> 60 | C101: ='>>Liste de prix produits'!C95 -> pc | D101: ='>>Liste de prix produits'!D95 -> 0.01 | E101: 0.6
A102: ='>>Liste de prix produits'!B96 -> À compléter | C102: ='>>Liste de prix produits'!C96 -> 0 | D102: ='>>Liste de prix produits'!D96 -> 0 | E102: 0
A103: ='>>Liste de prix produits'!B97 -> À compléter | C103: ='>>Liste de prix produits'!C97 -> 0 | D103: ='>>Liste de prix produits'!D97 -> 0 | E103: 0
A104: ='>>Liste de prix produits'!B98 -> À compléter | C104: ='>>Liste de prix produits'!C98 -> 0 | D104: ='>>Liste de prix produits'!D98 -> 0 | E104: 0
A105: ='>>Liste de prix produits'!B99 -> À compléter | C105: ='>>Liste de prix produits'!C99 -> 0 | D105: ='>>Liste de prix produits'!D99 -> 0 | E105: 0
A106: ='>>Liste de prix produits'!B100 -> À compléter | C106: ='>>Liste de prix produits'!C100 -> 0 | D106: ='>>Liste de prix produits'!D100 -> 0 | E106: 0
A107: Sous-total : | E107: =SUM(E95:E106) -> 19.14
A108: Salades et légumes
A109: ='>>Liste de prix produits'!B102 -> Mélange pour salade | B109: 900 | C109: ='>>Liste de prix produits'!C102 -> g | D109: ='>>Liste de prix produits'!D102 -> 0.01 | E109: =B109*D109 -> 9 | F109: =E118/$E$162 -> 0.04207058917
A110: ='>>Liste de prix produits'!B103 -> Échalote | B110: 0.05 | C110: ='>>Liste de prix produits'!C103 -> kg | D110: ='>>Liste de prix produits'!D103 -> 2.07 | E110: 0.1035
A111: ='>>Liste de prix produits'!B104 -> Tomate cerise | B111: 0.1 | C111: ='>>Liste de prix produits'!C104 -> kg | D111: ='>>Liste de prix produits'!D104 -> 1.03 | E111: 0.103
A112: ='>>Liste de prix produits'!B105 -> Maïs | B112: 200 | C112: ='>>Liste de prix produits'!C105 -> g | D112: ='>>Liste de prix produits'!D105 -> 0.01 | E112: 2
A113: ='>>Liste de prix produits'!B106 -> À compléter | C113: ='>>Liste de prix produits'!C106 -> 0 | D113: ='>>Liste de prix produits'!D106 -> 0 | E113: 0
A114: ='>>Liste de prix produits'!B107 -> À compléter | C114: ='>>Liste de prix produits'!C107 -> 0 | D114: ='>>Liste de prix produits'!D107 -> 0 | E114: 0
A115: ='>>Liste de prix produits'!B108 -> À compléter | C115: ='>>Liste de prix produits'!C108 -> 0 | D115: ='>>Liste de prix produits'!D108 -> 0 | E115: 0
A116: ='>>Liste de prix produits'!B109 -> À compléter | C116: ='>>Liste de prix produits'!C109 -> 0 | D116: ='>>Liste de prix produits'!D109 -> 0 | E116: 0
A117: ='>>Liste de prix produits'!B110 -> À compléter | C117: ='>>Liste de prix produits'!C110 -> 0 | D117: ='>>Liste de prix produits'!D110 -> 0 | E117: 0
A118: Sous-total : | E118: =SUM(E109:E117) -> 11.2065
A119: Garnitures
A120: ='>>Liste de prix produits'!B112 -> Croûtons | B120: 0.15 | C120: ='>>Liste de prix produits'!C112 -> kg | D120: ='>>Liste de prix produits'!D112 -> 5.18 | E120: =B120*D120 -> 0.777 | F120: =E134/$E$162 -> 0.05773955138
A121: ='>>Liste de prix produits'!B113 -> Mélange de noix | B121: 0.1 | C121: ='>>Liste de prix produits'!C113 -> kg | D121: ='>>Liste de prix produits'!D113 -> 23 | E121: 2.3
A122: ='>>Liste de prix produits'!B114 -> Cornichons | B122: 0.05 | C122: ='>>Liste de prix produits'!C114 -> kg | D122: ='>>Liste de prix produits'!D114 -> 3.36 | E122: 0.168
A123: ='>>Liste de prix produits'!B115 -> Mini oignons au vinaigre | B123: 0.03 | C123: ='>>Liste de prix produits'!C115 -> kg | D123: ='>>Liste de prix produits'!D115 -> 1.81 | E123: 0.0543
A124: ='>>Liste de prix produits'!B116 -> Câpres | B124: 0.05 | C124: ='>>Liste de prix produits'!C116 -> l | D124: ='>>Liste de prix produits'!D116 -> 14.67 | E124: 0.7335
A125: ='>>Liste de prix produits'!B117 -> Persil haché | B125: 0.05 | C125: ='>>Liste de prix produits'!C117 -> kg | D125: ='>>Liste de prix produits'!D117 -> 18.5 | E125: 0.925
A126: ='>>Liste de prix produits'!B118 -> Citron en quartiers | B126: 0.05 | C126: ='>>Liste de prix produits'!C118 -> pc | D126: ='>>Liste de prix produits'!D118 -> 0.45 | E126: 0.0225
A127: ='>>Liste de prix produits'!B119 -> Beurre (8 g) | B127: 80 | C127: ='>>Liste de prix produits'!C119 -> pc | D127: ='>>Liste de prix produits'!D119 -> 0.08 | E127: 6.4
A128: ='>>Liste de prix produits'!B120 -> Margarine (15 g) | B128: 80 | C128: ='>>Liste de prix produits'!C120 -> pc | D128: ='>>Liste de prix produits'!D120 -> 0.05 | E128: 4
A129: ='>>Liste de prix produits'!B121 -> À compléter | C129: ='>>Liste de prix produits'!C121 -> 0 | D129: ='>>Liste de prix produits'!D121 -> 0 | E129: 0
A130: ='>>Liste de prix produits'!B122 -> À compléter | C130: ='>>Liste de prix produits'!C122 -> 0 | D130: ='>>Liste de prix produits'!D122 -> 0 | E130: 0
A131: ='>>Liste de prix produits'!B123 -> À compléter | C131: ='>>Liste de prix produits'!C123 -> 0 | D131: ='>>Liste de prix produits'!D123 -> 0 | E131: 0
A132: ='>>Liste de prix produits'!B124 -> À compléter | C132: ='>>Liste de prix produits'!C124 -> 0 | D132: ='>>Liste de prix produits'!D124 -> 0 | E132: 0
A133: ='>>Liste de prix produits'!B125 -> À compléter | C133: ='>>Liste de prix produits'!C125 -> 0 | D133: ='>>Liste de prix produits'!D125 -> 0 | E133: 0
A134: Sous-total : | E134: =SUM(E120:E133) -> 15.3803
A135: Pain
A136: ='>>Liste de prix produits'!B127 -> Pain au chocolat premium | C136: ='>>Liste de prix produits'!C127 -> pc | D136: ='>>Liste de prix produits'!D127 -> 0.7364583333 | E136: =B136*D136 -> 0 | F136: =E161/$E$162 -> 0.4258491754
A137: ='>>Liste de prix produits'!B128 -> Pain au chocolat | B137: 20 | C137: ='>>Liste de prix produits'!C128 -> pc | D137: ='>>Liste de prix produits'!D128 -> 0.57625 | E137: 11.525
A138: ='>>Liste de prix produits'!B129 -> Golden Croissant | C138: ='>>Liste de prix produits'!C129 -> pc | D138: ='>>Liste de prix produits'!D129 -> 0.49 | E138: 0
A139: ='>>Liste de prix produits'!B130 -> Croissant droit | B139: 40 | C139: ='>>Liste de prix produits'!C130 -> pc | D139: ='>>Liste de prix produits'!D130 -> 0.49 | E139: 19.6
A140: ='>>Liste de prix produits'!B131 -> Couque suisse ronde premium | C140: ='>>Liste de prix produits'!C131 -> pc | D140: ='>>Liste de prix produits'!D131 -> 0.8961111111 | E140: 0
A141: ='>>Liste de prix produits'!B132 -> Cinnamon Scandi Swirl | C141: ='>>Liste de prix produits'!C132 -> pc | D141: ='>>Liste de prix produits'!D132 -> 0.99 | E141: 0
A142: ='>>Liste de prix produits'!B133 -> Assortiment mini-viennoiseries | B142: 40 | C142: ='>>Liste de prix produits'!C133 -> pc | D142: ='>>Liste de prix produits'!D133 -> 0.1129555556 | E142: 4.518222222
A143: ='>>Liste de prix produits'!B134 -> Mini Danish Selection | B143: 20 | C143: ='>>Liste de prix produits'!C134 -> pc | D143: ='>>Liste de prix produits'!D134 -> 0.5007142857 | E143: 10.01428571
A144: ='>>Liste de prix produits'!B135 -> Mini croissant fourré | B144: 20 | C144: ='>>Liste de prix produits'!C135 -> pc | D144: ='>>Liste de prix produits'!D135 -> 0.6538888889 | E144: 13.07777778
A145: ='>>Liste de prix produits'!B136 -> Assortiment Resto | B145: 30 | C145: ='>>Liste de prix produits'!C136 -> pc | D145: ='>>Liste de prix produits'!D136 -> 0.2517 | E145: 7.551
A146: ='>>Liste de prix produits'!B137 -> Assortiment Prestige | B146: 30 | C146: ='>>Liste de prix produits'!C137 -> pc | D146: ='>>Liste de prix produits'!D137 -> 0.3383 | E146: 10.149
A147: ='>>Liste de prix produits'!B138 -> Petite Boule Rustique pain complet | C147: ='>>Liste de prix produits'!C138 -> pc | D147: ='>>Liste de prix produits'!D138 -> 0.334375 | E147: 0
A148: ='>>Liste de prix produits'!B139 -> Pain du Meunier gris | C148: ='>>Liste de prix produits'!C139 -> pc | D148: ='>>Liste de prix produits'!D139 -> 4.22875 | E148: 0
A149: ='>>Liste de prix produits'!B140 -> Pain du Meunier multigrains | B149: 2 | C149: ='>>Liste de prix produits'!C140 -> pc | D149: ='>>Liste de prix produits'!D140 -> 4.22875 | E149: 8.4575
A150: ='>>Liste de prix produits'!B141 -> Pain du Meunier blanc | B150: 2 | C150: ='>>Liste de prix produits'!C141 -> pc | D150: ='>>Liste de prix produits'!D141 -> 4.22875 | E150: 8.4575
A151: ='>>Liste de prix produits'!B142 -> Pain Toast Blanc | B151: 1 | C151: ='>>Liste de prix produits'!C142 -> pc | D151: ='>>Liste de prix produits'!D142 -> 3.2375 | E151: 3.2375
A152: ='>>Liste de prix produits'!B143 -> Pain Toast Premium Country | B152: 2 | C152: ='>>Liste de prix produits'!C143 -> pc | D152: ='>>Liste de prix produits'!D143 -> 4.51 | E152: 9.02
A153: ='>>Liste de prix produits'!B144 -> PLUS Pain français blanc farine | B153: 2 | C153: ='>>Liste de prix produits'!C144 -> pc | D153: ='>>Liste de prix produits'!D144 -> 1.098 | E153: 2.196
A154: ='>>Liste de prix produits'!B145 -> PLUS Pain français fitness | C154: ='>>Liste de prix produits'!C145 -> pc | D154: ='>>Liste de prix produits'!D145 -> 1.23 | E154: 0
A155: ='>>Liste de prix produits'!B146 -> Petit pain blanc sans gluten | B155: 5 | C155: ='>>Liste de prix produits'!C146 -> pc | D155: ='>>Liste de prix produits'!D146 -> 1.12625 | E155: 5.63125
A156: ='>>Liste de prix produits'!B147 -> À compléter | C156: ='>>Liste de prix produits'!C147 -> 0 | D156: ='>>Liste de prix produits'!D147 -> 0 | E156: 0
A157: ='>>Liste de prix produits'!B148 -> À compléter | C157: ='>>Liste de prix produits'!C148 -> 0 | D157: ='>>Liste de prix produits'!D148 -> 0 | E157: 0
A158: ='>>Liste de prix produits'!B149 -> À compléter | C158: ='>>Liste de prix produits'!C149 -> 0 | D158: ='>>Liste de prix produits'!D149 -> 0 | E158: 0
A159: ='>>Liste de prix produits'!B150 -> À compléter | C159: ='>>Liste de prix produits'!C150 -> 0 | D159: ='>>Liste de prix produits'!D150 -> 0 | E159: 0
A160: ='>>Liste de prix produits'!B151 -> À compléter | C160: ='>>Liste de prix produits'!C151 -> 0 | D160: ='>>Liste de prix produits'!D151 -> 0 | E160: 0
A161: Sous-total : | E161: =SUM(E136:E160) -> 113.4350357
A162: Total : | E162: =E20+E41+E55+E68+E80+E93+E107+E118+E134+E161 -> 266.3737357
A163: Nombre total de clients : | C163: 100
A164: Coût par personne : | C164: =E162/C163 -> 2.663737357

Sheet Buffet petit-déjeuner confort
A1: BUFFET PETIT-DÉJEUNER CONFORT
A2: Exemple d’un petit-déjeuner d’hôtel plus élaboré avec davantage de variété, composé par nos chefs. Idéal pour offrir un petit plus à vos hôtes.
A3: INGRÉDIENTS | B3: QUANTITÉ | C3: UNITÉ | D3: PRIX D'ACHAT | E3: COÛT ALIMENTAIRE | F3: % COÛT PAR CATÉGORIE
A4: Boissons
A5: ='>>Liste de prix produits'!B5 -> Café | B5: 0.5 | C5: ='>>Liste de prix produits'!C5 -> kg | D5: ='>>Liste de prix produits'!D5 -> 15.3 | E5: =B5*D5 -> 7.65 | F5: =E20/$E$162 -> 0.04766559312
A6: ='>>Liste de prix produits'!B6 -> Thé | B6: 1 | C6: ='>>Liste de prix produits'!C6 -> pc | D6: ='>>Liste de prix produits'!D6 -> 0.15 | E6: 0.15
A7: ='>>Liste de prix produits'!B7 -> Eau plate | B7: 0.33 | C7: ='>>Liste de prix produits'!C7 -> l | D7: ='>>Liste de prix produits'!D7 -> 0.98 | E7: 0.3234
A8: ='>>Liste de prix produits'!B8 -> Eau pétillante | B8: 0.33 | C8: ='>>Liste de prix produits'!C8 -> l | D8: ='>>Liste de prix produits'!D8 -> 1.1 | E8: 0.363
A9: ='>>Liste de prix produits'!B9 -> Jus d’orange | B9: 2 | C9: ='>>Liste de prix produits'!C9 -> l | D9: ='>>Liste de prix produits'!D9 -> 3.2 | E9: 6.4
A10: ='>>Liste de prix produits'!B10 -> Smoothie kiwi (250 ml) | B10: 2 | C10: ='>>Liste de prix produits'!C10 -> pc | D10: ='>>Liste de prix produits'!D10 -> 1.33 | E10: 2.66
A11: ='>>Liste de prix produits'!B11 -> Smoothie fruits rouges (250 ml) | B11: 2 | C11: ='>>Liste de prix produits'!C11 -> pc | D11: ='>>Liste de prix produits'!D11 -> 1.33 | E11: 2.66
A12: ='>>Liste de prix produits'!B12 -> Jus de pomme | B12: 2 | C12: ='>>Liste de prix produits'!C12 -> l | D12: ='>>Liste de prix produits'!D12 -> 1.06 | E12: 2.12
A13: ='>>Liste de prix produits'!B13 -> Jus de tomate | B13: 0.5 | C13: ='>>Liste de prix produits'!C13 -> l | D13: ='>>Liste de prix produits'!D13 -> 0.99 | E13: 0.495
A14: ='>>Liste de prix produits'!B14 -> Lait chocolaté | B14: 0.5 | C14: ='>>Liste de prix produits'!C14 -> l | D14: ='>>Liste de prix produits'!D14 -> 1.63 | E14: 0.815
A15: ='>>Liste de prix produits'!B15 -> À compléter | C15: ='>>Liste de prix produits'!C15 -> 0 | D15: ='>>Liste de prix produits'!D15 -> 0 | E15: 0
A16: ='>>Liste de prix produits'!B16 -> À compléter | C16: ='>>Liste de prix produits'!C16 -> 0 | D16: ='>>Liste de prix produits'!D16 -> 0 | E16: 0
A17: ='>>Liste de prix produits'!B17 -> À compléter | C17: ='>>Liste de prix produits'!C17 -> 0 | D17: ='>>Liste de prix produits'!D17 -> 0 | E17: 0
A18: ='>>Liste de prix produits'!B18 -> À compléter | C18: ='>>Liste de prix produits'!C18 -> 0 | D18: ='>>Liste de prix produits'!D18 -> 0 | E18: 0
A19: ='>>Liste de prix produits'!B19 -> À compléter | C19: ='>>Liste de prix produits'!C19 -> 0 | D19: ='>>Liste de prix produits'!D19 -> 0 | E19: 0
A20: Sous-total : | E20: =SUM(E5:E19) -> 23.6364
A21: Produits laitiers
A22: ='>>Liste de prix produits'!B21 -> Yaourt aux fruits (150 g) | B22: 12 | C22: ='>>Liste de prix produits'!C21 -> pc | D22: ='>>Liste de prix produits'!D21 -> 0.43 | E22: =B22*D22 -> 5.16 | F22: =E41/$E$162 -> 0.07419037325
A23: ='>>Liste de prix produits'!B22 -> Yaourt avec céréales (100 g) | B23: 10 | C23: ='>>Liste de prix produits'!C22 -> pc | D23: ='>>Liste de prix produits'!D22 -> 0.55 | E23: 5.5
A24: ='>>Liste de prix produits'!B23 -> Actimel (80 ml) | B24: 2 | C24: ='>>Liste de prix produits'!C23 -> pc | D24: ='>>Liste de prix produits'!D23 -> 0.75 | E24: 1.5
A25: ='>>Liste de prix produits'!B24 -> Lait | B25: 0.2 | C25: ='>>Liste de prix produits'!C24 -> l | D25: ='>>Liste de prix produits'!D24 -> 0.72 | E25: 0.144
A26: ='>>Liste de prix produits'!B25 -> Fromage en tranches (20 g) | B26: 0.5 | C26: ='>>Liste de prix produits'!C25 -> pc | D26: ='>>Liste de prix produits'!D25 -> 0.16 | E26: 0.08
A27: ='>>Liste de prix produits'!B26 -> Lait de soja | B27: 1 | C27: ='>>Liste de prix produits'!C26 -> l | D27: ='>>Liste de prix produits'!D26 -> 3.2 | E27: 3.2
A28: ='>>Liste de prix produits'!B27 -> Brie | B28: 0.25 | C28: ='>>Liste de prix produits'!C27 -> kg | D28: ='>>Liste de prix produits'!D27 -> 18.52 | E28: 4.63
A29: ='>>Liste de prix produits'!B28 -> Fromage de chèvre | B29: 0.5 | C29: ='>>Liste de prix produits'!C28 -> kg | D29: ='>>Liste de prix produits'!D28 -> 12.4 | E29: 6.2
A30: ='>>Liste de prix produits'!B29 -> Chimay Bleue | C30: ='>>Liste de prix produits'!C29 -> kg | D30: ='>>Liste de prix produits'!D29 -> 53.55 | E30: 0
A31: ='>>Liste de prix produits'!B30 -> Cheddar | B31: 0.5 | C31: ='>>Liste de prix produits'!C30 -> kg | D31: ='>>Liste de prix produits'!D30 -> 7.65 | E31: 3.825
A32: ='>>Liste de prix produits'!B31 -> Maredsous | C32: ='>>Liste de prix produits'!C31 -> kg | D32: ='>>Liste de prix produits'!D31 -> 5.91 | E32: 0
A33: ='>>Liste de prix produits'!B32 -> Fromage aux herbes | B33: 0.5 | C33: ='>>Liste de prix produits'!C32 -> kg | D33: ='>>Liste de prix produits'!D32 -> 9.68 | E33: 4.84
A34: ='>>Liste de prix produits'!B33 -> Cottage cheese | B34: 0.25 | C34: ='>>Liste de prix produits'!C33 -> l | D34: ='>>Liste de prix produits'!D33 -> 6.33 | E34: 1.5825
A35: ='>>Liste de prix produits'!B34 -> Lait écrémé | B35: 0.2 | C35: ='>>Liste de prix produits'!C34 -> l | D35: ='>>Liste de prix produits'!D34 -> 0.64 | E35: 0.128
A36: ='>>Liste de prix produits'!B35 -> À compléter | C36: ='>>Liste de prix produits'!C36 -> 0 | D36: ='>>Liste de prix produits'!D36 -> 0 | E36: 0
A37: ='>>Liste de prix produits'!B36 -> À compléter | C37: ='>>Liste de prix produits'!C37 -> 0 | D37: ='>>Liste de prix produits'!D37 -> 0 | E37: 0
A38: ='>>Liste de prix produits'!B37 -> À compléter | C38: ='>>Liste de prix produits'!C38 -> 0 | D38: ='>>Liste de prix produits'!D38 -> 0 | E38: 0
A39: ='>>Liste de prix produits'!B38 -> À compléter | C39: ='>>Liste de prix produits'!C39 -> 0 | D39: ='>>Liste de prix produits'!D39 -> 0 | E39: 0
A40: ='>>Liste de prix produits'!B39 -> À compléter | C40: ='>>Liste de prix produits'!C40 -> 0 | D40: ='>>Liste de prix produits'!D40 -> 0 | E40: 0
A41: Sous-total : | E41: =SUM(E22:E40) -> 36.7895
A42: Fruits
A43: ='>>Liste de prix produits'!B41 -> Kiwi | B43: 5 | C43: ='>>Liste de prix produits'!C41 -> pc | D43: ='>>Liste de prix produits'!D41 -> 0.55 | E43: =B43*D43 -> 2.75 | F43: =E55/$E$162 -> 0.05412603101
A44: ='>>Liste de prix produits'!B42 -> Pomme | B44: 1 | C44: ='>>Liste de prix produits'!C42 -> kg | D44: ='>>Liste de prix produits'!D42 -> 1.9 | E44: 1.9
A45: ='>>Liste de prix produits'!B43 -> Poire | B45: 1 | C45: ='>>Liste de prix produits'!C43 -> kg | D45: ='>>Liste de prix produits'!D43 -> 2.1 | E45: 2.1
A46: ='>>Liste de prix produits'!B44 -> Orange | B46: 1 | C46: ='>>Liste de prix produits'!C44 -> kg | D46: ='>>Liste de prix produits'!D44 -> 2.28 | E46: 2.28
A47: ='>>Liste de prix produits'!B45 -> Raisins | B47: 1 | C47: ='>>Liste de prix produits'!C45 -> kg | D47: ='>>Liste de prix produits'!D45 -> 4.42 | E47: 4.42
A48: ='>>Liste de prix produits'!B46 -> Salade de fruits | B48: 1.5 | C48: ='>>Liste de prix produits'!C46 -> kg | D48: ='>>Liste de prix produits'!D46 -> 5.1 | E48: 7.65
A49: ='>>Liste de prix produits'!B47 -> Banane | B49: 2 | C49: ='>>Liste de prix produits'!C47 -> kg | D49: ='>>Liste de prix produits'!D47 -> 2.87 | E49: 5.74
A50: ='>>Liste de prix produits'!B48 -> À compléter | C50: ='>>Liste de prix produits'!C48 -> 0 | D50: ='>>Liste de prix produits'!D48 -> 0 | E50: 0
A51: ='>>Liste de prix produits'!B49 -> À compléter | C51: ='>>Liste de prix produits'!C49 -> 0 | D51: ='>>Liste de prix produits'!D49 -> 0 | E51: 0
A52: ='>>Liste de prix produits'!B50 -> À compléter | C52: ='>>Liste de prix produits'!C50 -> 0 | D52: ='>>Liste de prix produits'!D50 -> 0 | E52: 0
A53: ='>>Liste de prix produits'!B51 -> À compléter | C53: ='>>Liste de prix produits'!C51 -> 0 | D53: ='>>Liste de prix produits'!D51 -> 0 | E53: 0
A54: ='>>Liste de prix produits'!B52 -> À compléter | C54: ='>>Liste de prix produits'!C52 -> 0 | D54: ='>>Liste de prix produits'!D52 -> 0 | E54: 0
A55: Sous-total : | E55: =SUM(E43:E54) -> 26.84
A56: Buffet chaud
A57: ='>>Liste de prix produits'!B54 -> Œuf | B57: 36 | C57: ='>>Liste de prix produits'!C54 -> pc | D57: ='>>Liste de prix produits'!D54 -> 0.09 | E57: =B57*D57 -> 3.24 | F57: =E68/$E$162 -> 0.04584781353
A58: ='>>Liste de prix produits'!B55 -> Lard | B58: 0.5 | C58: ='>>Liste de prix produits'!C55 -> kg | D58: ='>>Liste de prix produits'!D55 -> 9.32 | E58: 4.66
A59: ='>>Liste de prix produits'!B56 -> Mini saucisses | B59: 1 | C59: ='>>Liste de prix produits'!C56 -> kg | D59: ='>>Liste de prix produits'!D56 -> 8.4 | E59: 8.4
A60: ='>>Liste de prix produits'!B57 -> Tomates | B60: 0.25 | C60: ='>>Liste de prix produits'!C57 -> kg | D60: ='>>Liste de prix produits'!D57 -> 2.14 | E60: 0.535
A61: ='>>Liste de prix produits'!B58 -> Champignons sautés | B61: 0.5 | C61: ='>>Liste de prix produits'!C58 -> kg | D61: ='>>Liste de prix produits'!D58 -> 7.8 | E61: 3.9
A62: ='>>Liste de prix produits'!B59 -> Tranches de pomme de terre | B62: 0.5 | C62: ='>>Liste de prix produits'!C59 -> kg | D62: ='>>Liste de prix produits'!D59 -> 4 | E62: 2
A63: ='>>Liste de prix produits'!B60 -> À compléter | C63: ='>>Liste de prix produits'!C60 -> 0 | D63: ='>>Liste de prix produits'!D60 -> 0 | E63: 0
A64: ='>>Liste de prix produits'!B61 -> À compléter | C64: ='>>Liste de prix produits'!C61 -> 0 | D64: ='>>Liste de prix produits'!D61 -> 0 | E64: 0
A65: ='>>Liste de prix produits'!B62 -> À compléter | C65: ='>>Liste de prix produits'!C62 -> 0 | D65: ='>>Liste de prix produits'!D62 -> 0 | E65: 0
A66: ='>>Liste de prix produits'!B63 -> À compléter | C66: ='>>Liste de prix produits'!C63 -> 0 | D66: ='>>Liste de prix produits'!D63 -> 0 | E66: 0
A67: ='>>Liste de prix produits'!B64 -> À compléter | C67: ='>>Liste de prix produits'!C64 -> 0 | D67: ='>>Liste de prix produits'!D64 -> 0 | E67: 0
A68: Sous-total : | E68: =SUM(E57:E67) -> 22.735
A69: Poisson
A70: ='>>Liste de prix produits'!B66 -> Saumon fumé | B70: 1 | C70: ='>>Liste de prix produits'!C66 -> kg | D70: ='>>Liste de prix produits'!D66 -> 22.83 | E70: =B70*D70 -> 22.83 | F70: =E80/$E$162 -> 0.2711948082
A71: ='>>Liste de prix produits'!B67 -> Elbot fumé | B71: 1 | C71: ='>>Liste de prix produits'!C67 -> kg | D71: ='>>Liste de prix produits'!D67 -> 31.78 | E71: 31.78
A72: ='>>Liste de prix produits'!B68 -> Maatjes | B72: 1 | C72: ='>>Liste de prix produits'!C68 -> kg | D72: ='>>Liste de prix produits'!D68 -> 21.87 | E72: 21.87
A73: ='>>Liste de prix produits'!B69 -> Crevettes | B73: 1 | C73: ='>>Liste de prix produits'!C69 -> kg | D73: ='>>Liste de prix produits'!D69 -> 40 | E73: 40
A74: ='>>Liste de prix produits'!B70 -> Salade de wakamé | B74: 1 | C74: ='>>Liste de prix produits'!C70 -> kg | D74: ='>>Liste de prix produits'!D70 -> 18 | E74: 18
A75: ='>>Liste de prix produits'!B71 -> À compléter | C75: ='>>Liste de prix produits'!C71 -> 0 | D75: ='>>Liste de prix produits'!D71 -> 0 | E75: 0
A76: ='>>Liste de prix produits'!B72 -> À compléter | C76: ='>>Liste de prix produits'!C72 -> 0 | D76: ='>>Liste de prix produits'!D72 -> 0 | E76: 0
A77: ='>>Liste de prix produits'!B73 -> À compléter | C77: ='>>Liste de prix produits'!C73 -> 0 | D77: ='>>Liste de prix produits'!D73 -> 0 | E77: 0
A78: ='>>Liste de prix produits'!B74 -> À compléter | C78: ='>>Liste de prix produits'!C74 -> 0 | D78: ='>>Liste de prix produits'!D74 -> 0 | E78: 0
A79: ='>>Liste de prix produits'!B75 -> À compléter | C79: ='>>Liste de prix produits'!C75 -> 0 | D79: ='>>Liste de prix produits'!D75 -> 0 | E79: 0
A80: Sous-total : | E80: =SUM(E70:E79) -> 134.48
A81: Charcuterie
A82: ='>>Liste de prix produits'!B77 -> Pancetta | B82: 1 | C82: ='>>Liste de prix produits'!C77 -> kg | D82: ='>>Liste de prix produits'!D77 -> 10.27 | E82: =B82*D82 -> 10.27 | F82: =E93/$E$162 -> 0.1788135309
A83: ='>>Liste de prix produits'!B78 -> Dinde fumée | B83: 1 | C83: ='>>Liste de prix produits'!C78 -> kg | D83: ='>>Liste de prix produits'!D78 -> 9.27 | E83: 9.27
A84: ='>>Liste de prix produits'!B79 -> Jambon cuit | B84: 1 | C84: ='>>Liste de prix produits'!C79 -> kg | D84: ='>>Liste de prix produits'!D79 -> 11.5 | E84: 11.5
A85: ='>>Liste de prix produits'!B80 -> Jambon Ganda | B85: 1 | C85: ='>>Liste de prix produits'!C80 -> kg | D85: ='>>Liste de prix produits'!D80 -> 36 | E85: 36
A86: ='>>Liste de prix produits'!B81 -> Salami | B86: 1 | C86: ='>>Liste de prix produits'!C81 -> kg | D86: ='>>Liste de prix produits'!D81 -> 11.51 | E86: 11.51
A87: ='>>Liste de prix produits'!B82 -> Boudin noir | B87: 1 | C87: ='>>Liste de prix produits'!C82 -> kg | D87: ='>>Liste de prix produits'!D82 -> 10.12 | E87: 10.12
A88: ='>>Liste de prix produits'!B83 -> À compléter | C88: ='>>Liste de prix produits'!C83 -> 0 | D88: ='>>Liste de prix produits'!D83 -> 0 | E88: 0
A89: ='>>Liste de prix produits'!B84 -> À compléter | C89: ='>>Liste de prix produits'!C84 -> 0 | D89: ='>>Liste de prix produits'!D84 -> 0 | E89: 0
A90: ='>>Liste de prix produits'!B85 -> À compléter | C90: ='>>Liste de prix produits'!C85 -> 0 | D90: ='>>Liste de prix produits'!D85 -> 0 | E90: 0
A91: ='>>Liste de prix produits'!B86 -> À compléter | C91: ='>>Liste de prix produits'!C86 -> 0 | D91: ='>>Liste de prix produits'!D86 -> 0 | E91: 0
A92: ='>>Liste de prix produits'!B87 -> À compléter | C92: ='>>Liste de prix produits'!C87 -> 0 | D92: ='>>Liste de prix produits'!D87 -> 0 | E92: 0
A93: Sous-total : | E93: =SUM(E82:E92) -> 88.67
A94: Sucré
A95: ='>>Liste de prix produits'!B89 -> Nutella (15 g) | B95: =120*0.2 -> 24 | C95: ='>>Liste de prix produits'!C89 -> pc | D95: ='>>Liste de prix produits'!D89 -> 0.16 | E95: =B95*D95 -> 3.84 | F95: =E107/$E$162 -> 0.0385980713
A96: ='>>Liste de prix produits'!B90 -> Confiture (15 g) | B96: =100*0.2 -> 20 | C96: ='>>Liste de prix produits'!C90 -> pc | D96: ='>>Liste de prix produits'!D90 -> 0.17 | E96: 3.4
A97: ='>>Liste de prix produits'!B91 -> Fromage à tartiner (17 g) | B97: =80*0.2 -> 16 | C97: ='>>Liste de prix produits'!C91 -> pc | D97: ='>>Liste de prix produits'!D91 -> 0.21 | E97: 3.36
A98: ='>>Liste de prix produits'!B92 -> Crêpes | C98: pc | D98: ='>>Liste de prix produits'!D92 -> 2.26 | E98: 0
A99: ='>>Liste de prix produits'!B93 -> Souris en chocolat (20 g) | B99: =120*0.2 -> 24 | C99: ='>>Liste de prix produits'!C92 -> pc | D99: ='>>Liste de prix produits'!D93 -> 0.31 | E99: 7.44
A100: ='>>Liste de prix produits'!B94 -> Édulcorants | B100: =500*0.05 -> 25 | C100: ='>>Liste de prix produits'!C94 -> pc | D100: ='>>Liste de prix produits'!D94 -> 0.02 | E100: 0.5
A101: ='>>Liste de prix produits'!B95 -> Sucre pour café (5 g) | B101: =600*0.1 -> 60 | C101: ='>>Liste de prix produits'!C95 -> pc | D101: ='>>Liste de prix produits'!D95 -> 0.01 | E101: 0.6
A102: ='>>Liste de prix produits'!B96 -> À compléter | C102: ='>>Liste de prix produits'!C96 -> 0 | D102: ='>>Liste de prix produits'!D96 -> 0 | E102: 0
A103: ='>>Liste de prix produits'!B97 -> À compléter | C103: ='>>Liste de prix produits'!C97 -> 0 | D103: ='>>Liste de prix produits'!D97 -> 0 | E103: 0
A104: ='>>Liste de prix produits'!B98 -> À compléter | C104: ='>>Liste de prix produits'!C98 -> 0 | D104: ='>>Liste de prix produits'!D98 -> 0 | E104: 0
A105: ='>>Liste de prix produits'!B99 -> À compléter | C105: ='>>Liste de prix produits'!C99 -> 0 | D105: ='>>Liste de prix produits'!D99 -> 0 | E105: 0
A106: ='>>Liste de prix produits'!B100 -> À compléter | C106: ='>>Liste de prix produits'!C100 -> 0 | D106: ='>>Liste de prix produits'!D100 -> 0 | E106: 0
A107: Sous-total : | E107: =SUM(E95:E106) -> 19.14
A108: Salades et légumes
A109: ='>>Liste de prix produits'!B102 -> Mélange pour salade | B109: 300 | C109: ='>>Liste de prix produits'!C102 -> g | D109: ='>>Liste de prix produits'!D102 -> 0.01 | E109: =B109*D109 -> 3 | F109: =E118/$E$162 -> 0.01049952237
A110: ='>>Liste de prix produits'!B103 -> Échalote | B110: 0.05 | C110: ='>>Liste de prix produits'!C103 -> kg | D110: ='>>Liste de prix produits'!D103 -> 2.07 | E110: 0.1035
A111: ='>>Liste de prix produits'!B104 -> Tomate cerise | B111: 0.1 | C111: ='>>Liste de prix produits'!C104 -> kg | D111: ='>>Liste de prix produits'!D104 -> 1.03 | E111: 0.103
A112: ='>>Liste de prix produits'!B105 -> Maïs | B112: 200 | C112: ='>>Liste de prix produits'!C105 -> g | D112: ='>>Liste de prix produits'!D105 -> 0.01 | E112: 2
A113: ='>>Liste de prix produits'!B106 -> À compléter | C113: ='>>Liste de prix produits'!C106 -> 0 | D113: ='>>Liste de prix produits'!D106 -> 0 | E113: 0
A114: ='>>Liste de prix produits'!B107 -> À compléter | C114: ='>>Liste de prix produits'!C107 -> 0 | D114: ='>>Liste de prix produits'!D107 -> 0 | E114: 0
A115: ='>>Liste de prix produits'!B108 -> À compléter | C115: ='>>Liste de prix produits'!C108 -> 0 | D115: ='>>Liste de prix produits'!D108 -> 0 | E115: 0
A116: ='>>Liste de prix produits'!B109 -> À compléter | C116: ='>>Liste de prix produits'!C109 -> 0 | D116: ='>>Liste de prix produits'!D109 -> 0 | E116: 0
A117: ='>>Liste de prix produits'!B110 -> À compléter | C117: ='>>Liste de prix produits'!C110 -> 0 | D117: ='>>Liste de prix produits'!D110 -> 0 | E117: 0
A118: Sous-total : | E118: =SUM(E109:E117) -> 5.2065
A119: Garnitures
A120: ='>>Liste de prix produits'!B112 -> Croûtons | B120: 0.15 | C120: ='>>Liste de prix produits'!C112 -> kg | D120: ='>>Liste de prix produits'!D112 -> 5.18 | E120: =B120*D120 -> 0.777 | F120: =E134/$E$162 -> 0.02942750028
A121: ='>>Liste de prix produits'!B113 -> Mélange de noix | B121: 0.1 | C121: ='>>Liste de prix produits'!C113 -> kg | D121: ='>>Liste de prix produits'!D113 -> 23 | E121: 2.3
A122: ='>>Liste de prix produits'!B114 -> Cornichons | B122: 0.05 | C122: ='>>Liste de prix produits'!C114 -> kg | D122: ='>>Liste de prix produits'!D114 -> 3.36 | E122: 0.168
A123: ='>>Liste de prix produits'!B115 -> Mini oignons au vinaigre | C123: ='>>Liste de prix produits'!C115 -> kg | D123: ='>>Liste de prix produits'!D115 -> 1.81 | E123: 0
A124: ='>>Liste de prix produits'!B116 -> Câpres | C124: ='>>Liste de prix produits'!C116 -> l | D124: ='>>Liste de prix produits'!D116 -> 14.67 | E124: 0
A125: ='>>Liste de prix produits'!B117 -> Persil haché | B125: 0.05 | C125: ='>>Liste de prix produits'!C117 -> kg | D125: ='>>Liste de prix produits'!D117 -> 18.5 | E125: 0.925
A126: ='>>Liste de prix produits'!B118 -> Citron en quartiers | B126: 0.05 | C126: ='>>Liste de prix produits'!C118 -> pc | D126: ='>>Liste de prix produits'!D118 -> 0.45 | E126: 0.0225
A127: ='>>Liste de prix produits'!B119 -> Beurre (8 g) | B127: 80 | C127: ='>>Liste de prix produits'!C119 -> pc | D127: ='>>Liste de prix produits'!D119 -> 0.08 | E127: 6.4
A128: ='>>Liste de prix produits'!B120 -> Margarine (15 g) | B128: 80 | C128: ='>>Liste de prix produits'!C120 -> pc | D128: ='>>Liste de prix produits'!D120 -> 0.05 | E128: 4
A129: ='>>Liste de prix produits'!B121 -> À compléter | C129: ='>>Liste de prix produits'!C121 -> 0 | D129: ='>>Liste de prix produits'!D121 -> 0 | E129: 0
A130: ='>>Liste de prix produits'!B122 -> À compléter | C130: ='>>Liste de prix produits'!C122 -> 0 | D130: ='>>Liste de prix produits'!D122 -> 0 | E130: 0
A131: ='>>Liste de prix produits'!B123 -> À compléter | C131: ='>>Liste de prix produits'!C123 -> 0 | D131: ='>>Liste de prix produits'!D123 -> 0 | E131: 0
A132: ='>>Liste de prix produits'!B124 -> À compléter | C132: ='>>Liste de prix produits'!C124 -> 0 | D132: ='>>Liste de prix produits'!D124 -> 0 | E132: 0
A133: ='>>Liste de prix produits'!B125 -> À compléter | C133: ='>>Liste de prix produits'!C125 -> 0 | D133: ='>>Liste de prix produits'!D125 -> 0 | E133: 0
A134: Sous-total : | E134: =SUM(E120:E133) -> 14.5925
A135: Pain
A136: ='>>Liste de prix produits'!B127 -> Pain au chocolat premium | B136: 30 | C136: ='>>Liste de prix produits'!C127 -> pc | D136: ='>>Liste de prix produits'!D127 -> 0.7364583333 | E136: =B136*D136 -> 22.09375 | F136: =E161/$E$162 -> 0.2496367561
A137: ='>>Liste de prix produits'!B128 -> Pain au chocolat | C137: ='>>Liste de prix produits'!C128 -> pc | D137: ='>>Liste de prix produits'!D128 -> 0.57625 | E137: 0
A138: ='>>Liste de prix produits'!B129 -> Golden Croissant | B138: 20 | C138: ='>>Liste de prix produits'!C129 -> pc | D138: ='>>Liste de prix produits'!D129 -> 0.49 | E138: 9.8
A139: ='>>Liste de prix produits'!B130 -> Croissant droit | C139: ='>>Liste de prix produits'!C130 -> pc | D139: ='>>Liste de prix produits'!D130 -> 0.49 | E139: 0
A140: ='>>Liste de prix produits'!B131 -> Couque suisse ronde premium | C140: ='>>Liste de prix produits'!C131 -> pc | D140: ='>>Liste de prix produits'!D131 -> 0.8961111111 | E140: 0
A141: ='>>Liste de prix produits'!B132 -> Cinnamon Scandi Swirl | C141: ='>>Liste de prix produits'!C132 -> pc | D141: ='>>Liste de prix produits'!D132 -> 0.99 | E141: 0
A142: ='>>Liste de prix produits'!B133 -> Assortiment mini-viennoiseries | B142: 20 | C142: ='>>Liste de prix produits'!C133 -> pc | D142: ='>>Liste de prix produits'!D133 -> 0.1129555556 | E142: 2.259111111
A143: ='>>Liste de prix produits'!B134 -> Mini Danish Selection | B143: 20 | C143: ='>>Liste de prix produits'!C134 -> pc | D143: ='>>Liste de prix produits'!D134 -> 0.5007142857 | E143: 10.01428571
A144: ='>>Liste de prix produits'!B135 -> Mini croissant fourré | B144: 20 | C144: ='>>Liste de prix produits'!C135 -> pc | D144: ='>>Liste de prix produits'!D135 -> 0.6538888889 | E144: 13.07777778
A145: ='>>Liste de prix produits'!B136 -> Assortiment Resto | B145: 25 | C145: ='>>Liste de prix produits'!C136 -> pc | D145: ='>>Liste de prix produits'!D136 -> 0.2517 | E145: 6.2925
A146: ='>>Liste de prix produits'!B137 -> Assortiment Prestige | B146: 25 | C146: ='>>Liste de prix produits'!C137 -> pc | D146: ='>>Liste de prix produits'!D137 -> 0.3383 | E146: 8.4575
A147: ='>>Liste de prix produits'!B138 -> Petite Boule Rustique pain complet | B147: 25 | C147: ='>>Liste de prix produits'!C138 -> pc | D147: ='>>Liste de prix produits'!D138 -> 0.334375 | E147: 8.359375
A148: ='>>Liste de prix produits'!B139 -> Pain du Meunier gris | B148: 2 | C148: ='>>Liste de prix produits'!C139 -> pc | D148: ='>>Liste de prix produits'!D139 -> 4.22875 | E148: 8.4575
A149: ='>>Liste de prix produits'!B140 -> Pain du Meunier multigrains | B149: 2 | C149: ='>>Liste de prix produits'!C140 -> pc | D149: ='>>Liste de prix produits'!D140 -> 4.22875 | E149: 8.4575
A150: ='>>Liste de prix produits'!B141 -> Pain du Meunier blanc | B150: 2 | C150: ='>>Liste de prix produits'!C141 -> pc | D150: ='>>Liste de prix produits'!D141 -> 4.22875 | E150: 8.4575
A151: ='>>Liste de prix produits'!B142 -> Pain Toast Blanc | B151: 1 | C151: ='>>Liste de prix produits'!C142 -> pc | D151: ='>>Liste de prix produits'!D142 -> 3.2375 | E151: 3.2375
A152: ='>>Liste de prix produits'!B143 -> Pain Toast Premium Country | B152: 1 | C152: ='>>Liste de prix produits'!C143 -> pc | D152: ='>>Liste de prix produits'!D143 -> 4.51 | E152: 4.51
A153: ='>>Liste de prix produits'!B144 -> PLUS Pain français blanc farine | B153: 1 | C153: ='>>Liste de prix produits'!C144 -> pc | D153: ='>>Liste de prix produits'!D144 -> 1.098 | E153: 1.098
A154: ='>>Liste de prix produits'!B145 -> PLUS Pain français fitness | B154: 2 | C154: ='>>Liste de prix produits'!C145 -> pc | D154: ='>>Liste de prix produits'!D145 -> 1.23 | E154: 2.46
A155: ='>>Liste de prix produits'!B146 -> Petit pain blanc sans gluten | B155: 6 | C155: ='>>Liste de prix produits'!C146 -> pc | D155: ='>>Liste de prix produits'!D146 -> 1.12625 | E155: 6.7575
A156: ='>>Liste de prix produits'!B147 -> À compléter | C156: ='>>Liste de prix produits'!C147 -> 0 | D156: ='>>Liste de prix produits'!D147 -> 0 | E156: 0
A157: ='>>Liste de prix produits'!B148 -> À compléter | C157: ='>>Liste de prix produits'!C148 -> 0 | D157: ='>>Liste de prix produits'!D148 -> 0 | E157: 0
A158: ='>>Liste de prix produits'!B149 -> À compléter | C158: ='>>Liste de prix produits'!C149 -> 0 | D158: ='>>Liste de prix produits'!D149 -> 0 | E158: 0
A159: ='>>Liste de prix produits'!B150 -> À compléter | C159: ='>>Liste de prix produits'!C150 -> 0 | D159: ='>>Liste de prix produits'!D150 -> 0 | E159: 0
A160: ='>>Liste de prix produits'!B151 -> À compléter | C160: ='>>Liste de prix produits'!C151 -> 0 | D160: ='>>Liste de prix produits'!D151 -> 0 | E160: 0
A161: Sous-total : | E161: =SUM(E136:E160) -> 123.7897996
A162: Total : | E162: =E20+E41+E55+E68+E80+E93+E107+E118+E134+E161 -> 495.8796996
A163: Nombre total de clients : | C163: 100
A164: Coût par personne : | C164: =E162/C163 -> 4.958796996

Sheet Buffet petit-déjeuner premium
A1: BUFFET PETIT-DÉJEUNER PREMIUM
A2: Exemple d’un petit-déjeuner d’hôtel premium pour des occasions spéciales : servez-vous-en comme inspiration ou adaptez-le à votre propre concept.
A3: INGRÉDIENTS | B3: QUANTITÉ | C3: UNITÉ | D3: PRIX D'ACHAT | E3: COÛT ALIMENTAIRE | F3: % COÛT PAR CATÉGORIE
A4: Boissons
A5: ='>>Liste de prix produits'!B5 -> Café | B5: 0.5 | C5: ='>>Liste de prix produits'!C5 -> kg | D5: ='>>Liste de prix produits'!D5 -> 15.3 | E5: =B5*D5 -> 7.65 | F5: =E20/$E$162 -> 0.03542825405
A6: ='>>Liste de prix produits'!B6 -> Thé | B6: 1 | C6: ='>>Liste de prix produits'!C6 -> pc | D6: ='>>Liste de prix produits'!D6 -> 0.15 | E6: 0.15
A7: ='>>Liste de prix produits'!B7 -> Eau plate | B7: 0.33 | C7: ='>>Liste de prix produits'!C7 -> l | D7: ='>>Liste de prix produits'!D7 -> 0.98 | E7: 0.3234
A8: ='>>Liste de prix produits'!B8 -> Eau pétillante | B8: 0.33 | C8: ='>>Liste de prix produits'!C8 -> l | D8: ='>>Liste de prix produits'!D8 -> 1.1 | E8: 0.363
A9: ='>>Liste de prix produits'!B9 -> Jus d’orange | B9: 2 | C9: ='>>Liste de prix produits'!C9 -> l | D9: ='>>Liste de prix produits'!D9 -> 3.2 | E9: 6.4
A10: ='>>Liste de prix produits'!B10 -> Smoothie kiwi (250 ml) | B10: 2 | C10: ='>>Liste de prix produits'!C10 -> pc | D10: ='>>Liste de prix produits'!D10 -> 1.33 | E10: 2.66
A11: ='>>Liste de prix produits'!B11 -> Smoothie fruits rouges (250 ml) | B11: 2 | C11: ='>>Liste de prix produits'!C11 -> pc | D11: ='>>Liste de prix produits'!D11 -> 1.33 | E11: 2.66
A12: ='>>Liste de prix produits'!B12 -> Jus de pomme | B12: 2 | C12: ='>>Liste de prix produits'!C12 -> l | D12: ='>>Liste de prix produits'!D12 -> 1.06 | E12: 2.12
A13: ='>>Liste de prix produits'!B13 -> Jus de tomate | B13: 0.5 | C13: ='>>Liste de prix produits'!C13 -> l | D13: ='>>Liste de prix produits'!D13 -> 0.99 | E13: 0.495
A14: ='>>Liste de prix produits'!B14 -> Lait chocolaté | B14: 0.5 | C14: ='>>Liste de prix produits'!C14 -> l | D14: ='>>Liste de prix produits'!D14 -> 1.63 | E14: 0.815
A15: ='>>Liste de prix produits'!B15 -> À compléter | C15: ='>>Liste de prix produits'!C15 -> 0 | D15: ='>>Liste de prix produits'!D15 -> 0 | E15: 0
A16: ='>>Liste de prix produits'!B16 -> À compléter | C16: ='>>Liste de prix produits'!C16 -> 0 | D16: ='>>Liste de prix produits'!D16 -> 0 | E16: 0
A17: ='>>Liste de prix produits'!B17 -> À compléter | C17: ='>>Liste de prix produits'!C17 -> 0 | D17: ='>>Liste de prix produits'!D17 -> 0 | E17: 0
A18: ='>>Liste de prix produits'!B18 -> À compléter | C18: ='>>Liste de prix produits'!C18 -> 0 | D18: ='>>Liste de prix produits'!D18 -> 0 | E18: 0
A19: ='>>Liste de prix produits'!B19 -> À compléter | C19: ='>>Liste de prix produits'!C19 -> 0 | D19: ='>>Liste de prix produits'!D19 -> 0 | E19: 0
A20: Sous-total : | E20: =SUM(E5:E19) -> 23.6364
A21: Produits laitiers
A22: ='>>Liste de prix produits'!B21 -> Yaourt aux fruits (150 g) | B22: 12 | C22: ='>>Liste de prix produits'!C21 -> pc | D22: ='>>Liste de prix produits'!D21 -> 0.43 | E22: =B22*D22 -> 5.16 | F22: =E41/$E$162 -> 0.08975625346
A23: ='>>Liste de prix produits'!B22 -> Yaourt avec céréales (100 g) | B23: 10 | C23: ='>>Liste de prix produits'!C22 -> pc | D23: ='>>Liste de prix produits'!D22 -> 0.55 | E23: 5.5
A24: ='>>Liste de prix produits'!B23 -> Actimel (80 ml) | B24: 2 | C24: ='>>Liste de prix produits'!C23 -> pc | D24: ='>>Liste de prix produits'!D23 -> 0.75 | E24: 1.5
A25: ='>>Liste de prix produits'!B24 -> Lait | B25: 0.2 | C25: ='>>Liste de prix produits'!C24 -> l | D25: ='>>Liste de prix produits'!D24 -> 0.72 | E25: 0.144
A26: ='>>Liste de prix produits'!B25 -> Fromage en tranches (20 g) | B26: 0.5 | C26: ='>>Liste de prix produits'!C25 -> pc | D26: ='>>Liste de prix produits'!D25 -> 0.16 | E26: 0.08
A27: ='>>Liste de prix produits'!B26 -> Lait de soja | B27: 1 | C27: ='>>Liste de prix produits'!C26 -> l | D27: ='>>Liste de prix produits'!D26 -> 3.2 | E27: 3.2
A28: ='>>Liste de prix produits'!B27 -> Brie | B28: 0.25 | C28: ='>>Liste de prix produits'!C27 -> kg | D28: ='>>Liste de prix produits'!D27 -> 18.52 | E28: 4.63
A29: ='>>Liste de prix produits'!B28 -> Fromage de chèvre | B29: 0.5 | C29: ='>>Liste de prix produits'!C28 -> kg | D29: ='>>Liste de prix produits'!D28 -> 12.4 | E29: 6.2
A30: ='>>Liste de prix produits'!B29 -> Chimay Bleue | B30: 0.5 | C30: ='>>Liste de prix produits'!C29 -> kg | D30: ='>>Liste de prix produits'!D29 -> 53.55 | E30: 26.775
A31: ='>>Liste de prix produits'!B30 -> Cheddar | B31: 0.5 | C31: ='>>Liste de prix produits'!C30 -> kg | D31: ='>>Liste de prix produits'!D30 -> 7.65 | E31: 3.825
A32: ='>>Liste de prix produits'!B31 -> Maredsous | B32: 0.25 | C32: ='>>Liste de prix produits'!C31 -> kg | D32: ='>>Liste de prix produits'!D31 -> 5.91 | E32: 1.4775
A33: ='>>Liste de prix produits'!B32 -> Fromage aux herbes | B33: 0.5 | C33: ='>>Liste de prix produits'!C32 -> kg | D33: ='>>Liste de prix produits'!D32 -> 9.68 | E33: 4.84
A34: ='>>Liste de prix produits'!B33 -> Cottage cheese | B34: 0.25 | C34: ='>>Liste de prix produits'!C33 -> l | D34: ='>>Liste de prix produits'!D33 -> 6.33 | E34: 1.5825
A35: ='>>Liste de prix produits'!B34 -> Lait écrémé | B35: 0.2 | C35: ='>>Liste de prix produits'!C34 -> l | D35: ='>>Liste de prix produits'!D34 -> 0.64 | E35: 0.128
A36: ='>>Liste de prix produits'!B35 -> À compléter | C36: ='>>Liste de prix produits'!C36 -> 0 | D36: ='>>Liste de prix produits'!D36 -> 0 | E36: 0
A37: ='>>Liste de prix produits'!B36 -> À compléter | C37: ='>>Liste de prix produits'!C37 -> 0 | D37: ='>>Liste de prix produits'!D37 -> 0 | E37: 0
A38: ='>>Liste de prix produits'!B37 -> À compléter | C38: ='>>Liste de prix produits'!C38 -> 0 | D38: ='>>Liste de prix produits'!D38 -> 0 | E38: 0
A39: ='>>Liste de prix produits'!B38 -> À compléter | C39: ='>>Liste de prix produits'!C39 -> 0 | D39: ='>>Liste de prix produits'!D39 -> 0 | E39: 0
A40: ='>>Liste de prix produits'!B39 -> À compléter | C40: ='>>Liste de prix produits'!C40 -> 0 | D40: ='>>Liste de prix produits'!D40 -> 0 | E40: 0
A41: Sous-total : | E41: =SUM(E23:E40) -> 59.882
A42: Fruits
A43: ='>>Liste de prix produits'!B41 -> Kiwi | B43: 5 | C43: ='>>Liste de prix produits'!C41 -> pc | D43: ='>>Liste de prix produits'!D41 -> 0.55 | E43: =B43*D43 -> 2.75 | F43: =E55/$E$162 -> 0.04023008321
A44: ='>>Liste de prix produits'!B42 -> Pomme | B44: 1 | C44: ='>>Liste de prix produits'!C42 -> kg | D44: ='>>Liste de prix produits'!D42 -> 1.9 | E44: 1.9
A45: ='>>Liste de prix produits'!B43 -> Poire | B45: 1 | C45: ='>>Liste de prix produits'!C43 -> kg | D45: ='>>Liste de prix produits'!D43 -> 2.1 | E45: 2.1
A46: ='>>Liste de prix produits'!B44 -> Orange | B46: 1 | C46: ='>>Liste de prix produits'!C44 -> kg | D46: ='>>Liste de prix produits'!D44 -> 2.28 | E46: 2.28
A47: ='>>Liste de prix produits'!B45 -> Raisins | B47: 1 | C47: ='>>Liste de prix produits'!C45 -> kg | D47: ='>>Liste de prix produits'!D45 -> 4.42 | E47: 4.42
A48: ='>>Liste de prix produits'!B46 -> Salade de fruits | B48: 1.5 | C48: ='>>Liste de prix produits'!C46 -> kg | D48: ='>>Liste de prix produits'!D46 -> 5.1 | E48: 7.65
A49: ='>>Liste de prix produits'!B47 -> Banane | B49: 2 | C49: ='>>Liste de prix produits'!C47 -> kg | D49: ='>>Liste de prix produits'!D47 -> 2.87 | E49: 5.74
A50: ='>>Liste de prix produits'!B48 -> À compléter | C50: ='>>Liste de prix produits'!C48 -> 0 | D50: ='>>Liste de prix produits'!D48 -> 0 | E50: 0
A51: ='>>Liste de prix produits'!B49 -> À compléter | C51: ='>>Liste de prix produits'!C49 -> 0 | D51: ='>>Liste de prix produits'!D49 -> 0 | E51: 0
A52: ='>>Liste de prix produits'!B50 -> À compléter | C52: ='>>Liste de prix produits'!C50 -> 0 | D52: ='>>Liste de prix produits'!D50 -> 0 | E52: 0
A53: ='>>Liste de prix produits'!B51 -> À compléter | C53: ='>>Liste de prix produits'!C51 -> 0 | D53: ='>>Liste de prix produits'!D51 -> 0 | E53: 0
A54: ='>>Liste de prix produits'!B52 -> À compléter | C54: ='>>Liste de prix produits'!C52 -> 0 | D54: ='>>Liste de prix produits'!D52 -> 0 | E54: 0
A55: Sous-total : | E55: =SUM(E43:E54) -> 26.84
A56: Buffet chaud
A57: ='>>Liste de prix produits'!B54 -> Œuf | B57: 36 | C57: ='>>Liste de prix produits'!C54 -> pc | D57: ='>>Liste de prix produits'!D54 -> 0.09 | E57: =B57*D57 -> 3.24 | F57: =E68/$E$162 -> 0.03407715878
A58: ='>>Liste de prix produits'!B55 -> Lard | B58: 0.5 | C58: ='>>Liste de prix produits'!C55 -> kg | D58: ='>>Liste de prix produits'!D55 -> 9.32 | E58: 4.66
A59: ='>>Liste de prix produits'!B56 -> Mini saucisses | B59: 1 | C59: ='>>Liste de prix produits'!C56 -> kg | D59: ='>>Liste de prix produits'!D56 -> 8.4 | E59: 8.4
A60: ='>>Liste de prix produits'!B57 -> Tomates | B60: 0.25 | C60: ='>>Liste de prix produits'!C57 -> kg | D60: ='>>Liste de prix produits'!D57 -> 2.14 | E60: 0.535
A61: ='>>Liste de prix produits'!B58 -> Champignons sautés | B61: 0.5 | C61: ='>>Liste de prix produits'!C58 -> kg | D61: ='>>Liste de prix produits'!D58 -> 7.8 | E61: 3.9
A62: ='>>Liste de prix produits'!B59 -> Tranches de pomme de terre | B62: 0.5 | C62: ='>>Liste de prix produits'!C59 -> kg | D62: ='>>Liste de prix produits'!D59 -> 4 | E62: 2
A63: ='>>Liste de prix produits'!B60 -> À compléter | C63: ='>>Liste de prix produits'!C60 -> 0 | D63: ='>>Liste de prix produits'!D60 -> 0 | E63: 0
A64: ='>>Liste de prix produits'!B61 -> À compléter | C64: ='>>Liste de prix produits'!C61 -> 0 | D64: ='>>Liste de prix produits'!D61 -> 0 | E64: 0
A65: ='>>Liste de prix produits'!B62 -> À compléter | C65: ='>>Liste de prix produits'!C62 -> 0 | D65: ='>>Liste de prix produits'!D62 -> 0 | E65: 0
A66: ='>>Liste de prix produits'!B63 -> À compléter | C66: ='>>Liste de prix produits'!C63 -> 0 | D66: ='>>Liste de prix produits'!D63 -> 0 | E66: 0
A67: ='>>Liste de prix produits'!B64 -> À compléter | C67: ='>>Liste de prix produits'!C64 -> 0 | D67: ='>>Liste de prix produits'!D64 -> 0 | E67: 0
A68: Sous-total : | E68: =SUM(E57:E67) -> 22.735
A69: Poisson
A70: ='>>Liste de prix produits'!B66 -> Saumon fumé | B70: 1 | C70: ='>>Liste de prix produits'!C66 -> kg | D70: ='>>Liste de prix produits'!D66 -> 22.83 | E70: =B70*D70 -> 22.83 | F70: =E80/$E$162 -> 0.201570104
A71: ='>>Liste de prix produits'!B67 -> Elbot fumé | B71: 1 | C71: ='>>Liste de prix produits'!C67 -> kg | D71: ='>>Liste de prix produits'!D67 -> 31.78 | E71: 31.78
A72: ='>>Liste de prix produits'!B68 -> Maatjes | B72: 1 | C72: ='>>Liste de prix produits'!C68 -> kg | D72: ='>>Liste de prix produits'!D68 -> 21.87 | E72: 21.87
A73: ='>>Liste de prix produits'!B69 -> Crevettes | B73: 1 | C73: ='>>Liste de prix produits'!C69 -> kg | D73: ='>>Liste de prix produits'!D69 -> 40 | E73: 40
A74: ='>>Liste de prix produits'!B70 -> Salade de wakamé | B74: 1 | C74: ='>>Liste de prix produits'!C70 -> kg | D74: ='>>Liste de prix produits'!D70 -> 18 | E74: 18
A75: ='>>Liste de prix produits'!B71 -> À compléter | C75: ='>>Liste de prix produits'!C71 -> 0 | D75: ='>>Liste de prix produits'!D71 -> 0 | E75: 0
A76: ='>>Liste de prix produits'!B72 -> À compléter | C76: ='>>Liste de prix produits'!C72 -> 0 | D76: ='>>Liste de prix produits'!D72 -> 0 | E76: 0
A77: ='>>Liste de prix produits'!B73 -> À compléter | C77: ='>>Liste de prix produits'!C73 -> 0 | D77: ='>>Liste de prix produits'!D73 -> 0 | E77: 0
A78: ='>>Liste de prix produits'!B74 -> À compléter | C78: ='>>Liste de prix produits'!C74 -> 0 | D78: ='>>Liste de prix produits'!D74 -> 0 | E78: 0
A79: ='>>Liste de prix produits'!B75 -> À compléter | C79: ='>>Liste de prix produits'!C75 -> 0 | D79: ='>>Liste de prix produits'!D75 -> 0 | E79: 0
A80: Sous-total : | E80: =SUM(E70:E79) -> 134.48
A81: Charcuterie
A82: ='>>Liste de prix produits'!B77 -> Pancetta | B82: 1 | C82: ='>>Liste de prix produits'!C77 -> kg | D82: ='>>Liste de prix produits'!D77 -> 10.27 | E82: =B82*D82 -> 10.27 | F82: =E93/$E$162 -> 0.1329061654
A83: ='>>Liste de prix produits'!B78 -> Dinde fumée | B83: 1 | C83: ='>>Liste de prix produits'!C78 -> kg | D83: ='>>Liste de prix produits'!D78 -> 9.27 | E83: 9.27
A84: ='>>Liste de prix produits'!B79 -> Jambon cuit | B84: 1 | C84: ='>>Liste de prix produits'!C79 -> kg | D84: ='>>Liste de prix produits'!D79 -> 11.5 | E84: 11.5
A85: ='>>Liste de prix produits'!B80 -> Jambon Ganda | B85: 1 | C85: ='>>Liste de prix produits'!C80 -> kg | D85: ='>>Liste de prix produits'!D80 -> 36 | E85: 36
A86: ='>>Liste de prix produits'!B81 -> Salami | B86: 1 | C86: ='>>Liste de prix produits'!C81 -> kg | D86: ='>>Liste de prix produits'!D81 -> 11.51 | E86: 11.51
A87: ='>>Liste de prix produits'!B82 -> Boudin noir | B87: 1 | C87: ='>>Liste de prix produits'!C82 -> kg | D87: ='>>Liste de prix produits'!D82 -> 10.12 | E87: 10.12
A88: ='>>Liste de prix produits'!B83 -> À compléter | C88: ='>>Liste de prix produits'!C83 -> 0 | D88: ='>>Liste de prix produits'!D83 -> 0 | E88: 0
A89: ='>>Liste de prix produits'!B84 -> À compléter | C89: ='>>Liste de prix produits'!C84 -> 0 | D89: ='>>Liste de prix produits'!D84 -> 0 | E89: 0
A90: ='>>Liste de prix produits'!B85 -> À compléter | C90: ='>>Liste de prix produits'!C85 -> 0 | D90: ='>>Liste de prix produits'!D85 -> 0 | E90: 0
A91: ='>>Liste de prix produits'!B86 -> À compléter | C91: ='>>Liste de prix produits'!C86 -> 0 | D91: ='>>Liste de prix produits'!D86 -> 0 | E91: 0
A92: ='>>Liste de prix produits'!B87 -> À compléter | C92: ='>>Liste de prix produits'!C87 -> 0 | D92: ='>>Liste de prix produits'!D87 -> 0 | E92: 0
A93: Sous-total : | E93: =SUM(E82:E92) -> 88.67
A94: Sucré
A95: ='>>Liste de prix produits'!B89 -> Nutella (15 g) | B95: =120*0.2 -> 24 | C95: ='>>Liste de prix produits'!C89 -> pc | D95: ='>>Liste de prix produits'!D89 -> 0.16 | E95: =B95*D95 -> 3.84 | F95: =E107/$E$162 -> 0.1811253076
A96: ='>>Liste de prix produits'!B90 -> Confiture (15 g) | B96: =100*0.2 -> 20 | C96: ='>>Liste de prix produits'!C90 -> pc | D96: ='>>Liste de prix produits'!D90 -> 0.17 | E96: 3.4
A97: ='>>Liste de prix produits'!B91 -> Fromage à tartiner (17 g) | B97: =80*0.2 -> 16 | C97: ='>>Liste de prix produits'!C91 -> pc | D97: ='>>Liste de prix produits'!D91 -> 0.21 | E97: 3.36
A98: ='>>Liste de prix produits'!B92 -> Crêpes | B98: =15*3 -> 45 | C98: pc | D98: ='>>Liste de prix produits'!D92 -> 2.26 | E98: 101.7
A99: ='>>Liste de prix produits'!B93 -> Souris en chocolat (20 g) | B99: =120*0.2 -> 24 | C99: ='>>Liste de prix produits'!C92 -> pc | D99: ='>>Liste de prix produits'!D93 -> 0.31 | E99: 7.44
A100: ='>>Liste de prix produits'!B94 -> Édulcorants | B100: =500*0.05 -> 25 | C100: ='>>Liste de prix produits'!C94 -> pc | D100: ='>>Liste de prix produits'!D94 -> 0.02 | E100: 0.5
A101: ='>>Liste de prix produits'!B95 -> Sucre pour café (5 g) | B101: =600*0.1 -> 60 | C101: ='>>Liste de prix produits'!C95 -> pc | D101: ='>>Liste de prix produits'!D95 -> 0.01 | E101: 0.6
A102: ='>>Liste de prix produits'!B96 -> À compléter | C102: ='>>Liste de prix produits'!C96 -> 0 | D102: ='>>Liste de prix produits'!D96 -> 0 | E102: 0
A103: ='>>Liste de prix produits'!B97 -> À compléter | C103: ='>>Liste de prix produits'!C97 -> 0 | D103: ='>>Liste de prix produits'!D97 -> 0 | E103: 0
A104: ='>>Liste de prix produits'!B98 -> À compléter | C104: ='>>Liste de prix produits'!C98 -> 0 | D104: ='>>Liste de prix produits'!D98 -> 0 | E104: 0
A105: ='>>Liste de prix produits'!B99 -> À compléter | C105: ='>>Liste de prix produits'!C99 -> 0 | D105: ='>>Liste de prix produits'!D99 -> 0 | E105: 0
A106: ='>>Liste de prix produits'!B100 -> À compléter | C106: ='>>Liste de prix produits'!C100 -> 0 | D106: ='>>Liste de prix produits'!D100 -> 0 | E106: 0
A107: Sous-total : | E107: =SUM(E95:E106) -> 120.84
A108: Salades et légumes
A109: ='>>Liste de prix produits'!B102 -> Mélange pour salade | B109: 300 | C109: ='>>Liste de prix produits'!C102 -> g | D109: ='>>Liste de prix produits'!D102 -> 0.01 | E109: =B109*D109 -> 3 | F109: =E118/$E$162 -> 0.007803946655
A110: ='>>Liste de prix produits'!B103 -> Échalote | B110: 0.05 | C110: ='>>Liste de prix produits'!C103 -> kg | D110: ='>>Liste de prix produits'!D103 -> 2.07 | E110: 0.1035
A111: ='>>Liste de prix produits'!B104 -> Tomate cerise | B111: 0.1 | C111: ='>>Liste de prix produits'!C104 -> kg | D111: ='>>Liste de prix produits'!D104 -> 1.03 | E111: 0.103
A112: ='>>Liste de prix produits'!B105 -> Maïs | B112: 200 | C112: ='>>Liste de prix produits'!C105 -> g | D112: ='>>Liste de prix produits'!D105 -> 0.01 | E112: 2
A113: ='>>Liste de prix produits'!B106 -> À compléter | C113: ='>>Liste de prix produits'!C106 -> 0 | D113: ='>>Liste de prix produits'!D106 -> 0 | E113: 0
A114: ='>>Liste de prix produits'!B107 -> À compléter | C114: ='>>Liste de prix produits'!C107 -> 0 | D114: ='>>Liste de prix produits'!D107 -> 0 | E114: 0
A115: ='>>Liste de prix produits'!B108 -> À compléter | C115: ='>>Liste de prix produits'!C108 -> 0 | D115: ='>>Liste de prix produits'!D108 -> 0 | E115: 0
A116: ='>>Liste de prix produits'!B109 -> À compléter | C116: ='>>Liste de prix produits'!C109 -> 0 | D116: ='>>Liste de prix produits'!D109 -> 0 | E116: 0
A117: ='>>Liste de prix produits'!B110 -> À compléter | C117: ='>>Liste de prix produits'!C110 -> 0 | D117: ='>>Liste de prix produits'!D110 -> 0 | E117: 0
A118: Sous-total : | E118: =SUM(E109:E117) -> 5.2065
A119: Garnitures
A120: ='>>Liste de prix produits'!B112 -> Croûtons | B120: 0.15 | C120: ='>>Liste de prix produits'!C112 -> kg | D120: ='>>Liste de prix produits'!D112 -> 5.18 | E120: =B120*D120 -> 0.777 | F120: =E134/$E$162 -> 0.02305330659
A121: ='>>Liste de prix produits'!B113 -> Mélange de noix | B121: 0.1 | C121: ='>>Liste de prix produits'!C113 -> kg | D121: ='>>Liste de prix produits'!D113 -> 23 | E121: 2.3
A122: ='>>Liste de prix produits'!B114 -> Cornichons | B122: 0.05 | C122: ='>>Liste de prix produits'!C114 -> kg | D122: ='>>Liste de prix produits'!D114 -> 3.36 | E122: 0.168
A123: ='>>Liste de prix produits'!B115 -> Mini oignons au vinaigre | B123: 0.03 | C123: ='>>Liste de prix produits'!C115 -> kg | D123: ='>>Liste de prix produits'!D115 -> 1.81 | E123: 0.0543
A124: ='>>Liste de prix produits'!B116 -> Câpres | B124: 0.05 | C124: ='>>Liste de prix produits'!C116 -> l | D124: ='>>Liste de prix produits'!D116 -> 14.67 | E124: 0.7335
A125: ='>>Liste de prix produits'!B117 -> Persil haché | B125: 0.05 | C125: ='>>Liste de prix produits'!C117 -> kg | D125: ='>>Liste de prix produits'!D117 -> 18.5 | E125: 0.925
A126: ='>>Liste de prix produits'!B118 -> Citron en quartiers | B126: 0.05 | C126: ='>>Liste de prix produits'!C118 -> pc | D126: ='>>Liste de prix produits'!D118 -> 0.45 | E126: 0.0225
A127: ='>>Liste de prix produits'!B119 -> Beurre (8 g) | B127: 80 | C127: ='>>Liste de prix produits'!C119 -> pc | D127: ='>>Liste de prix produits'!D119 -> 0.08 | E127: 6.4
A128: ='>>Liste de prix produits'!B120 -> Margarine (15 g) | B128: 80 | C128: ='>>Liste de prix produits'!C120 -> pc | D128: ='>>Liste de prix produits'!D120 -> 0.05 | E128: 4
A129: ='>>Liste de prix produits'!B121 -> À compléter | C129: ='>>Liste de prix produits'!C121 -> 0 | D129: ='>>Liste de prix produits'!D121 -> 0 | E129: 0
A130: ='>>Liste de prix produits'!B122 -> À compléter | C130: ='>>Liste de prix produits'!C122 -> 0 | D130: ='>>Liste de prix produits'!D122 -> 0 | E130: 0
A131: ='>>Liste de prix produits'!B123 -> À compléter | C131: ='>>Liste de prix produits'!C123 -> 0 | D131: ='>>Liste de prix produits'!D123 -> 0 | E131: 0
A132: ='>>Liste de prix produits'!B124 -> À compléter | C132: ='>>Liste de prix produits'!C124 -> 0 | D132: ='>>Liste de prix produits'!D124 -> 0 | E132: 0
A133: ='>>Liste de prix produits'!B125 -> À compléter | C133: ='>>Liste de prix produits'!C125 -> 0 | D133: ='>>Liste de prix produits'!D125 -> 0 | E133: 0
A134: Sous-total : | E134: =SUM(E120:E133) -> 15.3803
A135: Pain
A136: ='>>Liste de prix produits'!B127 -> Pain au chocolat premium | B136: 30 | C136: ='>>Liste de prix produits'!C127 -> pc | D136: ='>>Liste de prix produits'!D127 -> 0.7364583333 | E136: =B136*D136 -> 22.09375 | F136: =E161/$E$162 -> 0.2540494204
A137: ='>>Liste de prix produits'!B128 -> Pain au chocolat | C137: ='>>Liste de prix produits'!C128 -> pc | D137: ='>>Liste de prix produits'!D128 -> 0.57625 | E137: 0
A138: ='>>Liste de prix produits'!B129 -> Golden Croissant | B138: 20 | C138: ='>>Liste de prix produits'!C129 -> pc | D138: ='>>Liste de prix produits'!D129 -> 0.49 | E138: 9.8
A139: ='>>Liste de prix produits'!B130 -> Croissant droit | C139: ='>>Liste de prix produits'!C130 -> pc | D139: ='>>Liste de prix produits'!D130 -> 0.49 | E139: 0
A140: ='>>Liste de prix produits'!B131 -> Couque suisse ronde premium | B140: 20 | C140: ='>>Liste de prix produits'!C131 -> pc | D140: ='>>Liste de prix produits'!D131 -> 0.8961111111 | E140: 17.92222222
A141: ='>>Liste de prix produits'!B132 -> Cinnamon Scandi Swirl | B141: 15 | C141: ='>>Liste de prix produits'!C132 -> pc | D141: ='>>Liste de prix produits'!D132 -> 0.99 | E141: 14.85
A142: ='>>Liste de prix produits'!B133 -> Assortiment mini-viennoiseries | B142: 15 | C142: ='>>Liste de prix produits'!C133 -> pc | D142: ='>>Liste de prix produits'!D133 -> 0.1129555556 | E142: 1.694333333
A143: ='>>Liste de prix produits'!B134 -> Mini Danish Selection | B143: 15 | C143: ='>>Liste de prix produits'!C134 -> pc | D143: ='>>Liste de prix produits'!D134 -> 0.5007142857 | E143: 7.510714286
A144: ='>>Liste de prix produits'!B135 -> Mini croissant fourré | B144: 15 | C144: ='>>Liste de prix produits'!C135 -> pc | D144: ='>>Liste de prix produits'!D135 -> 0.6538888889 | E144: 9.808333333
A145: ='>>Liste de prix produits'!B136 -> Assortiment Resto | B145: 30 | C145: ='>>Liste de prix produits'!C136 -> pc | D145: ='>>Liste de prix produits'!D136 -> 0.2517 | E145: 7.551
A146: ='>>Liste de prix produits'!B137 -> Assortiment Prestige | B146: 30 | C146: ='>>Liste de prix produits'!C137 -> pc | D146: ='>>Liste de prix produits'!D137 -> 0.3383 | E146: 10.149
A147: ='>>Liste de prix produits'!B138 -> Petite Boule Rustique pain complet | B147: 25 | C147: ='>>Liste de prix produits'!C138 -> pc | D147: ='>>Liste de prix produits'!D138 -> 0.334375 | E147: 8.359375
A148: ='>>Liste de prix produits'!B139 -> Pain du Meunier gris | B148: 2 | C148: ='>>Liste de prix produits'!C139 -> pc | D148: ='>>Liste de prix produits'!D139 -> 4.22875 | E148: 8.4575
A149: ='>>Liste de prix produits'!B140 -> Pain du Meunier multigrains | B149: 3 | C149: ='>>Liste de prix produits'!C140 -> pc | D149: ='>>Liste de prix produits'!D140 -> 4.22875 | E149: 12.68625
A150: ='>>Liste de prix produits'!B141 -> Pain du Meunier blanc | B150: 3 | C150: ='>>Liste de prix produits'!C141 -> pc | D150: ='>>Liste de prix produits'!D141 -> 4.22875 | E150: 12.68625
A151: ='>>Liste de prix produits'!B142 -> Pain Toast Blanc | B151: 1 | C151: ='>>Liste de prix produits'!C142 -> pc | D151: ='>>Liste de prix produits'!D142 -> 3.2375 | E151: 3.2375
A152: ='>>Liste de prix produits'!B143 -> Pain Toast Premium Country | B152: 2 | C152: ='>>Liste de prix produits'!C143 -> pc | D152: ='>>Liste de prix produits'!D143 -> 4.51 | E152: 9.02
A153: ='>>Liste de prix produits'!B144 -> PLUS Pain français blanc farine | B153: 2 | C153: ='>>Liste de prix produits'!C144 -> pc | D153: ='>>Liste de prix produits'!D144 -> 1.098 | E153: 2.196
A154: ='>>Liste de prix produits'!B145 -> PLUS Pain français fitness | B154: 2 | C154: ='>>Liste de prix produits'!C145 -> pc | D154: ='>>Liste de prix produits'!D145 -> 1.23 | E154: 2.46
A155: ='>>Liste de prix produits'!B146 -> Petit pain blanc sans gluten | B155: 8 | C155: ='>>Liste de prix produits'!C146 -> pc | D155: ='>>Liste de prix produits'!D146 -> 1.12625 | E155: 9.01
A156: ='>>Liste de prix produits'!B147 -> À compléter | C156: ='>>Liste de prix produits'!C147 -> 0 | D156: ='>>Liste de prix produits'!D147 -> 0 | E156: 0
A157: ='>>Liste de prix produits'!B148 -> À compléter | C157: ='>>Liste de prix produits'!C148 -> 0 | D157: ='>>Liste de prix produits'!D148 -> 0 | E157: 0
A158: ='>>Liste de prix produits'!B149 -> À compléter | C158: ='>>Liste de prix produits'!C149 -> 0 | D158: ='>>Liste de prix produits'!D149 -> 0 | E158: 0
A159: ='>>Liste de prix produits'!B150 -> À compléter | C159: ='>>Liste de prix produits'!C150 -> 0 | D159: ='>>Liste de prix produits'!D150 -> 0 | E159: 0
A160: ='>>Liste de prix produits'!B151 -> À compléter | C160: ='>>Liste de prix produits'!C151 -> 0 | D160: ='>>Liste de prix produits'!D151 -> 0 | E160: 0
A161: Sous-total : | E161: =SUM(E136:E160) -> 169.4922282
A162: Total : | E162: =E20+E41+E55+E68+E80+E93+E107+E118+E134+E161 -> 667.1624282
A163: Nombre total de clients : | C163: 100
A164: Coût par personne : | C164: =E162/C163 -> 6.671624282
